Workbook

Sheet Cover
A3: Navigator
C5: =Client_Name -> SumProduct Pty Limited
C6: =Model_Name -> Model 10 - Capital Expenditure Completed.xlsm
C14: Primary Developer: Liam Bastick
C16: General Cover Notes:
C17: Simple financial model to demonstrate dynamic arrays.
C21: Any queries, please e-mail: | G21: liam.bastick@sumproduct.com
C22: Website: | G22: www.sumproduct.com

Sheet Navigator
A1: Navigator
A2: =Model_Name -> Model 10 - Capital Expenditure Completed.xlsm
A3: Navigator
E4: Error Checks: | G4: =Overall_Error_Check -> 0
B7: 1 | C7: Table of Contents
F9: Cover
F10: Style Guide
F11: Model Parameters
F12: General Assumptions
F13: Calculations
F14: Opening Balance Sheet
F15: Income Statement
F16: Balance Sheet
F17: Cash Flow Statement
F18: Timing
F19: Lookup
F20: Template Sheet
F21: Error Checks

Sheet Style Guide
A1: =IF(ISERROR(RIGHT(CELL("filename",A1),LEN(CELL("filename",A1))-FIND("]",CELL("filename",A1)))), "", RIGHT(CELL("filename",A1),LEN(CELL("filename",A1))-FIND("]",CELL("filename",A1)))) -> Style Guide
A2: =Model_Name -> Model 10 - Capital Expenditure Completed.xlsm
A3: Navigator
E4: Error Checks: | I4: =Overall_Error_Check -> 0
B6: =MAX($B$5:$B5)+1 -> 1 | C6: Formatting of Headers / Dividers
C8: Description | I8: Display | K8: Style Name
C10: Sheet Title | I10: =C10 -> Sheet Title | K10: Sheet Title
C11: Model Name | I11: =C11 -> Model Name | K11: Model Name
C13: Header 1 | I13: =C13 -> Header 1 | K13: Header 1
C14: Header 2 | I14: =C14 -> Header 2 | K14: Header 2
C15: Header 3 | I15: =C15 -> Header 3 | K15: Header 3
C16: Header 4 | I16: =C16 -> Header 4 | K16: Header 4
C18: Notes | I18: =C18 -> Notes | K18: Notes
C20: Table Heading | I20: =C20 -> Table Heading | K20: Table Heading
B23: =MAX($B$5:$B22)+1 -> 2 | C23: Individual Cell Styles
C25: Description | I25: Display | K25: Style Name
C27: Assumption | I27: Assumption | K27: =C27 -> Assumption
C29: Constraint | I29: =C29 -> Constraint | K29: =C29 -> Constraint
C31: Empty | K31: =C31 -> Empty
C33: Error Check | I33: 0 | K33: =C33 -> Error Check
C35: Hyperlink | I35: Hyperlink | K35: =C35 -> Hyperlink
C37: Internal Reference | I37: =Days_in_Year -> 365 | K37: =C37 -> Internal Reference
C39: Line Calculation | I39: 77 | K39: Line Calc
C41: Line Total | I41: =I39 -> 77 | K41: =C41 -> Line Total
C43: Parameter | I43: 365 | K43: =C43 -> Parameter
C45: Range Name Description | I45: Not_Named | K45: =C45 -> Range Name Description
C47: Row Reference | I47: =ROW(C47) -> 47 | K47: Row Ref
C49: Row Summary | I49: =I41 -> 77 | K49: =C49 -> Row Summary
C51: Units | I51: A$ | K51: =C51 -> Units
C53: WIP | K53: =C53 -> WIP
B56: =MAX($B$5:$B55)+1 -> 3 | C56: Numerical Styles
C58: Description | I58: Display | K58: Style Name
C60: Comma | I60: 123456.789 | K60: =C60 -> Comma
C62: Comma [0] | I62: -123456.789 | K62: Comma [0]
C64: Currency | I64: 123456.789 | K64: Currency
C66: Currency [0] | I66: 123456.789 | K66: Currency [0]
C68: Date | I68: =TODAY() -> 2024-02-02 | K68: =C68 -> Date
C70: Date Heading | I70: =TODAY() -> 2024-02-02 | K70: =C70 -> Date Heading
C72: Numbers 0 | I72: -123456.789 | K72: =C72 -> Numbers 0
C74: Percent | I74: 0.5 | K74: =C74 -> Percent

Sheet Model Parameters
A1: =IF(ISERROR(RIGHT(CELL("filename",A1),LEN(CELL("filename",A1))-FIND("]",CELL("filename",A1)))), "", RIGHT(CELL("filename",A1),LEN(CELL("filename",A1))-FIND("]",CELL("filename",A1)))) -> Model Parameters
A2: =Model_Name -> Model 10 - Capital Expenditure Completed.xlsm
A3: Navigator
E4: Error Checks: | I4: =Overall_Error_Check -> 0
B6: =MAX($B$5:$B5)+1 -> 1 | C6: General
C8: Key Inputs
D10: General
E12: Model Name | G12: =IF(ISERROR(OR(FIND("[",CELL("filename",A1)),FIND("]",CELL("filename",A1)))),"",MID(CELL("filename",A1),FIND("[",CELL("filename",A1))+1,FIND("]",CELL("filename",A1))-FIND("[",CELL("filename",A1))-1)) -> Model 10 - Capital Expenditure Completed.xlsm
E13: Client Name | G13: SumProduct Pty Limited
B16: =MAX($B$5:$B15)+1 -> 2 | C16: General Range Names
C18: Technical Assumptions
E20: Days in Year | G20: 365
E21: Months in Month | G21: 1
E22: Months in Quarter | G22: 3
E23: Months in Half Yr | G23: 6
E24: Months in Year | G24: 12
E25: Quarters in Year | G25: 4
E27: Rounding Accuracy | G27: 5
E29: Very Large Number | G29: 1e+99
E30: Very Small Number | G30: 1e-08
E32: Thousand | G32: 1000
B35: =MAX($B$5:$B34)+1 -> 3 | C35: Technical assumptions
C37: Model information
E39: Start date | G39: =Model_Start_Date -> 2024-07-01
C42: Units
E44: Unit | G44: # | I44: Unit
E45: Currency | G45: US$'000 | I45: Currency
E46: Dollars | G46: $ | I46: Dollars
E47: Boolean | G47: [1,0] | I47: Boolean
E48: Percentage | G48: % | I48: Percentage
E49: No of days | G49: # Days | I49: No_of_Days
E50: Year | G50: Year | I50: Year
E51: No of years | G51: # Year(s) | I51: No_of_Years
E52: Multiplier | G52: x | I52: Multiplier
E53: Weight | G53: kg | I53: Weight
E54: Price / Weight | G54: $/kg | I54: Price_Weight
C57: Financial statement abbreviations
E59: Income Statement | G59: IS | I59: Income_Statement
E60: Balance Sheet | G60: BS | I60: Balance_Sheet
E61: Cash Flow Statement | G61: CFS | I61: Cash_Flow_Statement

Sheet General Assumptions
A1: =IF(ISERROR(RIGHT(CELL("filename",A1),LEN(CELL("filename",A1))-FIND("]",CELL("filename",A1)))), "", RIGHT(CELL("filename",A1),LEN(CELL("filename",A1))-FIND("]",CELL("filename",A1)))) -> General Assumptions
A2: =Model_Name -> Model 10 - Capital Expenditure Completed.xlsm
A3: Navigator
B4: Error Checks: | F4: =Overall_Error_Check -> 0
J5: =_xlfn.ANCHORARRAY(Timing!J5) -> 2025-06-30 | K5: 2026-06-30 | L5: 2027-06-30 | M5: 2028-06-30 | N5: 2029-06-30 | O5: 2030-06-30 | P5: 2031-06-30 | Q5: 2032-06-30 | R5: 2033-06-30 | S5: 2034-06-30 | T5: 2035-06-30 | U5: 2036-06-30 | V5: 2037-06-30
C6: =Timing!C6 -> Start Date | J6: =_xlfn.ANCHORARRAY(Timing!J6) -> 2024-07-01 | K6: 2025-07-01 | L6: 2026-07-01 | M6: 2027-07-01 | N6: 2028-07-01 | O6: 2029-07-01 | P6: 2030-07-01 | Q6: 2031-07-01 | R6: 2032-07-01 | S6: 2033-07-01 | T6: 2034-07-01 | U6: 2035-07-01 | V6: 2036-07-01
C7: End Date | J7: =_xlfn.ANCHORARRAY(Timing!J7) -> 2025-06-30 | K7: 2026-06-30 | L7: 2027-06-30 | M7: 2028-06-30 | N7: 2029-06-30 | O7: 2030-06-30 | P7: 2031-06-30 | Q7: 2032-06-30 | R7: 2033-06-30 | S7: 2034-06-30 | T7: 2035-06-30 | U7: 2036-06-30 | V7: 2037-06-30
C8: Number of Days | J8: =_xlfn.ANCHORARRAY(Timing!J8) -> 365 | K8: 365 | L8: 365 | M8: 366 | N8: 365 | O8: 365 | P8: 365 | Q8: 366 | R8: 365 | S8: 365 | T8: 365 | U8: 366 | V8: 365
C9: Counter | J9: =_xlfn.ANCHORARRAY(Timing!J9) -> 1 | K9: 2 | L9: 3 | M9: 4 | N9: 5 | O9: 6 | P9: 7 | Q9: 8 | R9: 9 | S9: 10 | T9: 11 | U9: 12 | V9: 13
B11: =MAX($B$10:$B10)+1 -> 1 | C11: =A1 -> General Assumptions
C13: Revenue and related
D15: Sales
E17: Projected sales | G17: =Unit -> # | J17: =_xlfn.ANCHORARRAY(J$9)*100 -> 100 | K17: 200 | L17: 300 | M17: 400 | N17: 500 | O17: 600 | P17: 700 | Q17: 800 | R17: 900 | S17: 1000 | T17: 1100 | U17: 1200 | V17: 1300
E18: Unit price | G18: =Currency -> US$'000 | J18: 15
E19: Inflation | G19: =Percentage -> % | J19: =IF(_xlfn.ANCHORARRAY(J$9)=1,,IF((_xlfn.ANCHORARRAY(J$9)+1)/100<6%,(_xlfn.ANCHORARRAY(J$9)+1)/100,6%)) -> 0 | K19: 0.03 | L19: 0.04 | M19: 0.05 | N19: 0.06 | O19: 0.06 | P19: 0.06 | Q19: 0.06 | R19: 0.06 | S19: 0.06 | T19: 0.06 | U19: 0.06 | V19: 0.06
D21: Working capital
E23: Days receivable | G23: =No._of_days -> Year | J23: =IF(_xlfn.ANCHORARRAY(J$9),60,) -> 60 | K23: 60 | L23: 60 | M23: 60 | N23: 60 | O23: 60 | P23: 60 | Q23: 60 | R23: 60 | S23: 60 | T23: 60 | U23: 60 | V23: 60
C26: COGS and related
D28: COGS
E30: Gross margin (non-inventory) | G30: =Percentage -> % | J30: =IF(_xlfn.ANCHORARRAY(J$9),70%,) -> 0.7 | K30: 0.7 | L30: 0.7 | M30: 0.7 | N30: 0.7 | O30: 0.7 | P30: 0.7 | Q30: 0.7 | R30: 0.7 | S30: 0.7 | T30: 0.7 | U30: 0.7 | V30: 0.7
D32: Working capital
E34: Days payable | G34: =No._of_days -> Year | J34: =IF(_xlfn.ANCHORARRAY(J$9),90,) -> 90 | K34: 90 | L34: 90 | M34: 90 | N34: 90 | O34: 90 | P34: 90 | Q34: 90 | R34: 90 | S34: 90 | T34: 90 | U34: 90 | V34: 90
C37: Purchases and related
D39: Purchases
E41: Purchases | G41: =Weight -> kg | J41: 400 | K41: 775 | L41: 325 | M41: 550 | N41: 1000 | O41: 1210 | P41: 1420 | Q41: 1630 | R41: 1840 | S41: 2050 | T41: 2260 | U41: 2470 | V41: 2680 | W41: 2890 | X41: 3100 | Y41: 3310 | Z41: 3530 | AA41: 3750 | AB41: 4000 | AC41: 4000
E42: Price | G42: =Price_Weight -> $/kg | J42: =_xlfn.TAKE(IF(_xlfn.ANCHORARRAY(J$9),{3990,4750,2800,4160,5000,4569,4712,4855,4998,5141,5284,5427,5570,5713,5856,5999,6142,6285,6428,6571},),,Number_of_Periods) -> 3990 | K42: 4750 | L42: 2800 | M42: 4160 | N42: 5000 | O42: 4569 | P42: 4712 | Q42: 4855 | R42: 4998 | S42: 5141 | T42: 5284 | U42: 5427 | V42: 5570
E43: Amount used per sale | G43: =Weight -> kg | J43: =IF(_xlfn.ANCHORARRAY(J$9),2,) -> 2 | K43: 2 | L43: 2 | M43: 2 | N43: 2 | O43: 2 | P43: 2 | Q43: 2 | R43: 2 | S43: 2 | T43: 2 | U43: 2 | V43: 2
E44: Wastage | G44: =Percentage -> % | J44: =IF(_xlfn.ANCHORARRAY(J$9)=1,3%,IF(_xlfn.ANCHORARRAY(J$9)<4,2%,1%)) -> 0.03 | K44: 0.02 | L44: 0.02 | M44: 0.01 | N44: 0.01 | O44: 0.01 | P44: 0.01 | Q44: 0.01 | R44: 0.01 | S44: 0.01 | T44: 0.01 | U44: 0.01 | V44: 0.01
I45: =Model_Start_Date-1 -> 2024-06-30
E46: Opening inventory balance | G46: =Weight -> kg | I46: 13
D48: Working capital
E50: Days payable | G50: =No._of_days -> Year | J50: =IF(_xlfn.ANCHORARRAY(J$9),30,) -> 30 | K50: 30 | L50: 30 | M50: 30 | N50: 30 | O50: 30 | P50: 30 | Q50: 30 | R50: 30 | S50: 30 | T50: 30 | U50: 30 | V50: 30
C53: Opex and cash payments
C54: All expenses are assumed to be paid as they are incurred
D56: Opex
E58: Growth rates used from | G58: =Year -> Year | I58: 2027-06-30
E59: Amounts | G59: =Currency -> US$'000 | J59: =IF(_xlfn.ANCHORARRAY(J$9),55+_xlfn.ANCHORARRAY(J$9)*5,) -> 60 | K59: 65 | L59: 70 | M59: 75 | N59: 80 | O59: 85 | P59: 90 | Q59: 95 | R59: 100 | S59: 105 | T59: 110 | U59: 115 | V59: 120
E60: Growth rates | G60: =Percentage -> % | J60: =IF(_xlfn.ANCHORARRAY(J$9)=1,,IF((7-_xlfn.ANCHORARRAY(J$9))/100>1%,(7-_xlfn.ANCHORARRAY(J$9))/100,1%)) -> 0 | K60: 0.05 | L60: 0.04 | M60: 0.03 | N60: 0.02 | O60: 0.01 | P60: 0.01 | Q60: 0.01 | R60: 0.01 | S60: 0.01 | T60: 0.01 | U60: 0.01 | V60: 0.01
C63: Capex and related
D65: Capital expenditure
E67: Capital expenditure | G67: =Currency -> US$'000 | J67: 150 | K67: 180 | L67: 120 | M67: 90 | N67: 100 | O67: 150 | P67: 180 | Q67: 120 | R67: 90 | S67: 100 | T67: 150 | U67: 180 | V67: 120 | W67: 90 | X67: 100 | Y67: 150 | Z67: 180 | AA67: 120 | AB67: 90 | AC67: 100
D69: Accounting depreciation - straight line
E71: Remaining life of existing assets | G71: =No_of_Years -> # Year(s) | I71: 5
E72: Annual rate | G72: =Percentage -> % | I72: =IF(I71=0,,1/I71) -> 0.2
E74: Economic life of new capex | G74: =No_of_Years -> # Year(s) | I74: 4
E75: Annual rate | G75: =Percentage -> % | I75: =IF(I74=0,,1/I74) -> 0.25

Sheet Calculations
A1: =IF(ISERROR(RIGHT(CELL("filename",A1),LEN(CELL("filename",A1))-FIND("]",CELL("filename",A1)))), "", RIGHT(CELL("filename",A1),LEN(CELL("filename",A1))-FIND("]",CELL("filename",A1)))) -> Calculations
A2: =Model_Name -> Model 10 - Capital Expenditure Completed.xlsm
A3: Navigator
B4: Error Checks: | F4: =Overall_Error_Check -> 0
J5: =_xlfn.ANCHORARRAY(Timing!J5) -> 2025-06-30 | K5: 2026-06-30 | L5: 2027-06-30 | M5: 2028-06-30 | N5: 2029-06-30 | O5: 2030-06-30 | P5: 2031-06-30 | Q5: 2032-06-30 | R5: 2033-06-30 | S5: 2034-06-30 | T5: 2035-06-30 | U5: 2036-06-30 | V5: 2037-06-30
C6: =Timing!C6 -> Start Date | J6: =_xlfn.ANCHORARRAY(Timing!J6) -> 2024-07-01 | K6: 2025-07-01 | L6: 2026-07-01 | M6: 2027-07-01 | N6: 2028-07-01 | O6: 2029-07-01 | P6: 2030-07-01 | Q6: 2031-07-01 | R6: 2032-07-01 | S6: 2033-07-01 | T6: 2034-07-01 | U6: 2035-07-01 | V6: 2036-07-01
C7: End Date | J7: =_xlfn.ANCHORARRAY(Timing!J7) -> 2025-06-30 | K7: 2026-06-30 | L7: 2027-06-30 | M7: 2028-06-30 | N7: 2029-06-30 | O7: 2030-06-30 | P7: 2031-06-30 | Q7: 2032-06-30 | R7: 2033-06-30 | S7: 2034-06-30 | T7: 2035-06-30 | U7: 2036-06-30 | V7: 2037-06-30
C8: Number of Days | J8: =_xlfn.ANCHORARRAY(Timing!J8) -> 365 | K8: 365 | L8: 365 | M8: 366 | N8: 365 | O8: 365 | P8: 365 | Q8: 366 | R8: 365 | S8: 365 | T8: 365 | U8: 366 | V8: 365
C9: Counter | J9: =_xlfn.ANCHORARRAY(Timing!J9) -> 1 | K9: 2 | L9: 3 | M9: 4 | N9: 5 | O9: 6 | P9: 7 | Q9: 8 | R9: 9 | S9: 10 | T9: 11 | U9: 12 | V9: 13
B11: =MAX($B$10:$B10)+1 -> 1 | C11: =A1 -> Calculations
C13: ='General Assumptions'!C13 -> Revenue and related
P14: =IFERROR(_xlfn.FORMULATEXT(J14),"") -> 
D15: ='General Assumptions'!D15 -> Sales
E17: ='General Assumptions'!E17 -> Projected sales | G17: =Unit -> # | J17: =_xlfn.ANCHORARRAY('General Assumptions'!J17) -> 100 | K17: 200 | L17: 300 | M17: 400 | N17: 500 | O17: 600 | P17: 700 | Q17: 800 | R17: 900 | S17: 1000 | T17: 1100 | U17: 1200 | V17: 1300 | AE17: =IFERROR(_xlfn.FORMULATEXT(J17),"") -> ='General Assumptions'!J17#
E18: ='General Assumptions'!E18 -> Unit price | G18: =Currency -> US$'000 | J18: ='General Assumptions'!J18 -> 15 | AE18: =IFERROR(_xlfn.FORMULATEXT(J18),"") -> ='General Assumptions'!J18
E19: ='General Assumptions'!E19 -> Inflation | G19: =Percentage -> % | J19: =IF(_xlfn.ANCHORARRAY('General Assumptions'!J19)="","",_xlfn.ANCHORARRAY('General Assumptions'!J19)) -> 0 | K19: 0.03 | L19: 0.04 | M19: 0.05 | N19: 0.06 | O19: 0.06 | P19: 0.06 | Q19: 0.06 | R19: 0.06 | S19: 0.06 | T19: 0.06 | U19: 0.06 | V19: 0.06 | AE19: =IFERROR(_xlfn.FORMULATEXT(J19),"") -> =IF('General Assumptions'!J19#="","",'General Assumptions'!J19#)
AE20: =IFERROR(_xlfn.FORMULATEXT(J20),"") -> 
E21: Price per unit | G21: =Currency -> US$'000 | J21: =_xlfn.SCAN(J18,_xlfn.ANCHORARRAY(J19),_xlfn.LAMBDA(_xlpm.accumulator,_xlpm.percentage,_xlpm.accumulator*(1+_xlpm.percentage))) -> 15 | K21: 15.45 | L21: 16.068 | M21: 16.8714 | N21: 17.883684 | O21: 18.95670504 | P21: 20.09410734 | Q21: 21.29975378 | R21: 22.57773901 | S21: 23.93240335 | T21: 25.36834755 | U21: 26.8904484 | V21: 28.50387531 | AE21: =SCAN(J18,J19#,LAMBDA(accumulator,percentage,accumulator*(1+percentage)))
E23: Revenue | G23: =Currency -> US$'000 | J23: =_xlfn.ANCHORARRAY(J17)*_xlfn.ANCHORARRAY(J21) -> 1500 | K23: 3090 | L23: 4820.4 | M23: 6748.56 | N23: 8941.842 | O23: 11374.02302 | P23: 14065.87514 | Q23: 17039.80303 | R23: 20319.96511 | S23: 23932.40335 | T23: 27905.18231 | U23: 32268.53809 | V23: 37055.0379 | AE23: =J17#*J21#
D25: Working capital
E27: Days receivable | G27: =No._of_days -> Year | J27: =_xlfn.ANCHORARRAY('General Assumptions'!J23) -> 60 | K27: 60 | L27: 60 | M27: 60 | N27: 60 | O27: 60 | P27: 60 | Q27: 60 | R27: 60 | S27: 60 | T27: 60 | U27: 60 | V27: 60 | AE27: ='General Assumptions'!J23#
E29: Days in period | G29: =No._of_days -> Year | J29: =_xlfn.ANCHORARRAY(J$8) -> 365 | K29: 365 | L29: 365 | M29: 366 | N29: 365 | O29: 365 | P29: 365 | Q29: 366 | R29: 365 | S29: 365 | T29: 365 | U29: 366 | V29: 365 | AE29: =J$8#
E31: Closing receivables | G31: =Currency -> US$'000 | J31: =_xlfn.ANCHORARRAY(J23)*_xlfn.ANCHORARRAY(J27)/_xlfn.ANCHORARRAY(J29) -> 246.5753425 | K31: 507.9452055 | L31: 792.3945205 | M31: 1106.321311 | N31: 1469.891836 | O31: 1869.702415 | P31: 2312.198653 | Q31: 2793.410332 | R31: 3340.268237 | S31: 3934.093701 | T31: 4587.153256 | U31: 5289.924276 | V31: 6091.239107 | AE31: =J23#*J27#/J29#
D33: Control account
E35: Opening receivables | G35: =Currency -> US$'000 | J35: =OFFSET(_xlfn.ANCHORARRAY(J38),,-1) -> 0 | K35: 246.5753425 | L35: 507.9452055 | M35: 792.3945205 | N35: 1106.321311 | O35: 1469.891836 | P35: 1869.702415 | Q35: 2312.198653 | R35: 2793.410332 | S35: 3340.268237 | T35: 3934.093701 | U35: 4587.153256 | V35: 5289.924276 | AD35: BS | AE35: =OFFSET(J38#,,-1)
E36: Revenue | G36: =Currency -> US$'000 | J36: =_xlfn.ANCHORARRAY(J23) -> 1500 | K36: 3090 | L36: 4820.4 | M36: 6748.56 | N36: 8941.842 | O36: 11374.02302 | P36: 14065.87514 | Q36: 17039.80303 | R36: 20319.96511 | S36: 23932.40335 | T36: 27905.18231 | U36: 32268.53809 | V36: 37055.0379 | AD36: IS | AE36: =J23#
E37: Cash receipts | G37: =Currency -> US$'000 | J37: =_xlfn.ANCHORARRAY(J38)-_xlfn.ANCHORARRAY(J35)-_xlfn.ANCHORARRAY(J36) -> -1253.424658 | K37: -2828.630137 | L37: -4535.950685 | M37: -6434.633209 | N37: -8578.271476 | O37: -10974.21244 | P37: -13623.3789 | Q37: -16558.59135 | R37: -19773.1072 | S37: -23338.57789 | T37: -27252.12275 | U37: -31565.76707 | V37: -36253.72307 | AD37: CFS | AE37: =J38#-J35#-J36#
E38: Closing receivables | G38: =Currency -> US$'000 | I38: ='Opening Balance Sheet'!$I$15 -> 0 | J38: =_xlfn.ANCHORARRAY(J31) -> 246.5753425 | K38: 507.9452055 | L38: 792.3945205 | M38: 1106.321311 | N38: 1469.891836 | O38: 1869.702415 | P38: 2312.198653 | Q38: 2793.410332 | R38: 3340.268237 | S38: 3934.093701 | T38: 4587.153256 | U38: 5289.924276 | V38: 6091.239107 | AD38: BS | AE38: =J31#
C41: COGS and related
D43: COGS
E45: Revenue | G45: =Currency -> US$'000 | H45: ="Row "&ROW(J23) -> Row 23 | J45: =_xlfn.ANCHORARRAY(J23) -> 1500 | K45: 3090 | L45: 4820.4 | M45: 6748.56 | N45: 8941.842 | O45: 11374.02302 | P45: 14065.87514 | Q45: 17039.80303 | R45: 20319.96511 | S45: 23932.40335 | T45: 27905.18231 | U45: 32268.53809 | V45: 37055.0379 | AE45: =J23#
E46: Gross margin (non-inventory) | G46: =Percentage -> % | J46: =_xlfn.ANCHORARRAY('General Assumptions'!J30) -> 0.7 | K46: 0.7 | L46: 0.7 | M46: 0.7 | N46: 0.7 | O46: 0.7 | P46: 0.7 | Q46: 0.7 | R46: 0.7 | S46: 0.7 | T46: 0.7 | U46: 0.7 | V46: 0.7 | AE46: ='General Assumptions'!J30#
E47: Gross profit (non-inventory) | G47: =Currency -> US$'000 | J47: =_xlfn.ANCHORARRAY(J45)*_xlfn.ANCHORARRAY(J46) -> 1050 | K47: 2163 | L47: 3374.28 | M47: 4723.992 | N47: 6259.2894 | O47: 7961.816117 | P47: 9846.112598 | Q47: 11927.86212 | R47: 14223.97558 | S47: 16752.68235 | T47: 19533.62761 | U47: 22587.97666 | V47: 25938.52653 | AE47: =J45#*J46#
E49: COGS | G49: =Currency -> US$'000 | J49: =_xlfn.ANCHORARRAY(J45)-_xlfn.ANCHORARRAY(J47) -> 450 | K49: 927 | L49: 1446.12 | M49: 2024.568 | N49: 2682.5526 | O49: 3412.206907 | P49: 4219.762542 | Q49: 5111.940908 | R49: 6095.989533 | S49: 7179.721005 | T49: 8371.554692 | U49: 9680.561426 | V49: 11116.51137 | AE49: =J45#-J47#
D51: Working capital
E53: ='General Assumptions'!E34 -> Days payable | G53: =No._of_days -> Year | J53: =_xlfn.ANCHORARRAY('General Assumptions'!J34) -> 90 | K53: 90 | L53: 90 | M53: 90 | N53: 90 | O53: 90 | P53: 90 | Q53: 90 | R53: 90 | S53: 90 | T53: 90 | U53: 90 | V53: 90 | AE53: ='General Assumptions'!J34#
E55: Days in period | G55: =No._of_days -> Year | J55: =_xlfn.ANCHORARRAY(J$8) -> 365 | K55: 365 | L55: 365 | M55: 366 | N55: 365 | O55: 365 | P55: 365 | Q55: 366 | R55: 365 | S55: 365 | T55: 365 | U55: 366 | V55: 365 | AE55: =J$8#
E57: Closing payables | G57: =Currency -> US$'000 | J57: =_xlfn.ANCHORARRAY(J49)*_xlfn.ANCHORARRAY(J53)/_xlfn.ANCHORARRAY(J55) -> 110.9589041 | K57: 228.5753425 | L57: 356.5775342 | M57: 497.8445902 | N57: 661.451326 | O57: 841.3660867 | P57: 1040.489394 | Q57: 1257.034649 | R57: 1503.120707 | S57: 1770.342166 | T57: 2064.218965 | U57: 2380.465924 | V57: 2741.057598 | AE57: =J49#*J53#/J55#
D59: Control account
E61: Opening payables | G61: =Currency -> US$'000 | J61: =OFFSET(_xlfn.ANCHORARRAY(J64),,-1) -> 0 | K61: 110.9589041 | L61: 228.5753425 | M61: 356.5775342 | N61: 497.8445902 | O61: 661.451326 | P61: 841.3660867 | Q61: 1040.489394 | R61: 1257.034649 | S61: 1503.120707 | T61: 1770.342166 | U61: 2064.218965 | V61: 2380.465924 | AD61: BS | AE61: =OFFSET(J64#,,-1)
E62: COGS | G62: =Currency -> US$'000 | J62: =_xlfn.ANCHORARRAY(J49) -> 450 | K62: 927 | L62: 1446.12 | M62: 2024.568 | N62: 2682.5526 | O62: 3412.206907 | P62: 4219.762542 | Q62: 5111.940908 | R62: 6095.989533 | S62: 7179.721005 | T62: 8371.554692 | U62: 9680.561426 | V62: 11116.51137 | AD62: IS | AE62: =J49#
E63: Cash payments | G63: =Currency -> US$'000 | J63: =_xlfn.ANCHORARRAY(J64)-_xlfn.ANCHORARRAY(J61)-_xlfn.ANCHORARRAY(J62) -> -339.0410959 | K63: -809.3835616 | L63: -1318.117808 | M63: -1883.300944 | N63: -2518.945864 | O63: -3232.292147 | P63: -4020.639235 | Q63: -4895.395652 | R63: -5849.903475 | S63: -6912.499546 | T63: -8077.677893 | U63: -9364.314466 | V63: -10755.9197 | AD63: CFS | AE63: =J64#-J61#-J62#
E64: Closing payables | G64: =Currency -> US$'000 | I64: ='Opening Balance Sheet'!$I$28 -> 0 | J64: =_xlfn.ANCHORARRAY(J57) -> 110.9589041 | K64: 228.5753425 | L64: 356.5775342 | M64: 497.8445902 | N64: 661.451326 | O64: 841.3660867 | P64: 1040.489394 | Q64: 1257.034649 | R64: 1503.120707 | S64: 1770.342166 | T64: 2064.218965 | U64: 2380.465924 | V64: 2741.057598 | AD64: BS | AE64: =J57#
C67: Purchases and related
D69: Purchases
E71: ='General Assumptions'!E41 -> Purchases | G71: =Weight -> kg | J71: =OFFSET('General Assumptions'!J41,,,,Number_of_Periods) -> 400 | K71: 775 | L71: 325 | M71: 550 | N71: 1000 | O71: 1210 | P71: 1420 | Q71: 1630 | R71: 1840 | S71: 2050 | T71: 2260 | U71: 2470 | V71: 2680 | AE71: =OFFSET('General Assumptions'!J41,,,,Number_of_Periods)
E72: ='General Assumptions'!E42 -> Price | G72: =Price_Weight -> $/kg | J72: =_xlfn.ANCHORARRAY('General Assumptions'!J42) -> 3990 | K72: 4750 | L72: 2800 | M72: 4160 | N72: 5000 | O72: 4569 | P72: 4712 | Q72: 4855 | R72: 4998 | S72: 5141 | T72: 5284 | U72: 5427 | V72: 5570 | AE72: ='General Assumptions'!J42#
D74: Calculations
E76: Purchases | G76: =Weight -> kg | J76: =_xlfn.ANCHORARRAY(J71) -> 400 | K76: 775 | L76: 325 | M76: 550 | N76: 1000 | O76: 1210 | P76: 1420 | Q76: 1630 | R76: 1840 | S76: 2050 | T76: 2260 | U76: 2470 | V76: 2680 | AE76: =J71#
E77: Prices | G77: =Price_Weight -> $/kg | J77: =_xlfn.ANCHORARRAY(J72) -> 3990 | K77: 4750 | L77: 2800 | M77: 4160 | N77: 5000 | O77: 4569 | P77: 4712 | Q77: 4855 | R77: 4998 | S77: 5141 | T77: 5284 | U77: 5427 | V77: 5570 | AE77: =J72#
E78: Purchases | G78: =Currency -> US$'000 | J78: =_xlfn.ANCHORARRAY(J76)*_xlfn.ANCHORARRAY(J77)/Thousand -> 1596 | K78: 3681.25 | L78: 910 | M78: 2288 | N78: 5000 | O78: 5528.49 | P78: 6691.04 | Q78: 7913.65 | R78: 9196.32 | S78: 10539.05 | T78: 11941.84 | U78: 13404.69 | V78: 14927.6 | AE78: =J76#*J77#/Thousand
E80: Days payable | G80: =No._of_days -> Year | J80: =_xlfn.ANCHORARRAY('General Assumptions'!J50) -> 30 | K80: 30 | L80: 30 | M80: 30 | N80: 30 | O80: 30 | P80: 30 | Q80: 30 | R80: 30 | S80: 30 | T80: 30 | U80: 30 | V80: 30 | AE80: ='General Assumptions'!J50#
E82: Days in period | G82: =No._of_days -> Year | J82: =_xlfn.ANCHORARRAY(J$8) -> 365 | K82: 365 | L82: 365 | M82: 366 | N82: 365 | O82: 365 | P82: 365 | Q82: 366 | R82: 365 | S82: 365 | T82: 365 | U82: 366 | V82: 365 | AE82: =J$8#
E84: Closing payables | G84: =Currency -> US$'000 | J84: =_xlfn.ANCHORARRAY(J78)*_xlfn.ANCHORARRAY(J80)/_xlfn.ANCHORARRAY(J82) -> 131.1780822 | K84: 302.5684932 | L84: 74.79452055 | M84: 187.5409836 | N84: 410.9589041 | O84: 454.3964384 | P84: 549.9484932 | Q84: 648.6598361 | R84: 755.8619178 | S84: 866.2232877 | T84: 981.5210959 | U84: 1098.745082 | V84: 1226.926027 | AE84: =IFERROR(_xlfn.FORMULATEXT(J84),"") -> =J78#*J80#/J82#
D86: Control account
E88: Opening payables | G88: =Currency -> US$'000 | J88: =OFFSET(_xlfn.ANCHORARRAY(J91),,-1) -> 0 | K88: 131.1780822 | L88: 302.5684932 | M88: 74.79452055 | N88: 187.5409836 | O88: 410.9589041 | P88: 454.3964384 | Q88: 549.9484932 | R88: 648.6598361 | S88: 755.8619178 | T88: 866.2232877 | U88: 981.5210959 | V88: 1098.745082 | AD88: =Balance_Sheet -> BS | AE88: =OFFSET(J91#,,-1)
E89: Purchases | G89: =Currency -> US$'000 | J89: =_xlfn.ANCHORARRAY(J78) -> 1596 | K89: 3681.25 | L89: 910 | M89: 2288 | N89: 5000 | O89: 5528.49 | P89: 6691.04 | Q89: 7913.65 | R89: 9196.32 | S89: 10539.05 | T89: 11941.84 | U89: 13404.69 | V89: 14927.6 | AE89: =J78#
E90: Cash payments | G90: =Currency -> US$'000 | J90: =_xlfn.ANCHORARRAY(J91)-_xlfn.ANCHORARRAY(J88)-_xlfn.ANCHORARRAY(J89) -> -1464.821918 | K90: -3509.859589 | L90: -1137.773973 | M90: -2175.253537 | N90: -4776.582079 | O90: -5485.052466 | P90: -6595.487945 | Q90: -7814.938657 | R90: -9089.117918 | S90: -10428.68863 | T90: -11826.54219 | U90: -13287.46601 | V90: -14799.41905 | AD90: =Cash_Flow_Statement -> CFS | AE90: =J91#-J88#-J89#
E91: Closing payables | G91: =Currency -> US$'000 | J91: =_xlfn.ANCHORARRAY(J84) -> 131.1780822 | K91: 302.5684932 | L91: 74.79452055 | M91: 187.5409836 | N91: 410.9589041 | O91: 454.3964384 | P91: 549.9484932 | Q91: 648.6598361 | R91: 755.8619178 | S91: 866.2232877 | T91: 981.5210959 | U91: 1098.745082 | V91: 1226.926027 | AD91: =Balance_Sheet -> BS | AE91: =J84#
C94: Inventory and related
D96: Referred values
E98: Purchases | G98: =Weight -> kg | H98: ="Row "&ROW(J71) -> Row 71 | J98: =_xlfn.ANCHORARRAY(J71) -> 400 | K98: 775 | L98: 325 | M98: 550 | N98: 1000 | O98: 1210 | P98: 1420 | Q98: 1630 | R98: 1840 | S98: 2050 | T98: 2260 | U98: 2470 | V98: 2680 | AE98: =J71#
E99: Purchases | G99: =Currency -> US$'000 | H99: ="Row "&ROW(J78) -> Row 78 | J99: =_xlfn.ANCHORARRAY(J78) -> 1596 | K99: 3681.25 | L99: 910 | M99: 2288 | N99: 5000 | O99: 5528.49 | P99: 6691.04 | Q99: 7913.65 | R99: 9196.32 | S99: 10539.05 | T99: 11941.84 | U99: 13404.69 | V99: 14927.6 | AE99: =J78#
E100: Amount used per sale | G100: =Weight -> kg | J100: =_xlfn.ANCHORARRAY('General Assumptions'!J43) -> 2 | K100: 2 | L100: 2 | M100: 2 | N100: 2 | O100: 2 | P100: 2 | Q100: 2 | R100: 2 | S100: 2 | T100: 2 | U100: 2 | V100: 2 | AE100: ='General Assumptions'!J43#
E101: Wastage | G101: =Percentage -> % | J101: =_xlfn.ANCHORARRAY('General Assumptions'!J44) -> 0.03 | K101: 0.02 | L101: 0.02 | M101: 0.01 | N101: 0.01 | O101: 0.01 | P101: 0.01 | Q101: 0.01 | R101: 0.01 | S101: 0.01 | T101: 0.01 | U101: 0.01 | V101: 0.01 | AE101: ='General Assumptions'!J44#
E103: Projected sales | G103: =Unit -> # | H103: ="Row "&ROW(J17) -> Row 17 | J103: =_xlfn.ANCHORARRAY(J17) -> 100 | K103: 200 | L103: 300 | M103: 400 | N103: 500 | O103: 600 | P103: 700 | Q103: 800 | R103: 900 | S103: 1000 | T103: 1100 | U103: 1200 | V103: 1300 | AE103: =J17#
D105: Calculations
E107: Amount used per sale | G107: =Weight -> kg | H107: ="Row "&ROW(J100) -> Row 100 | J107: =_xlfn.ANCHORARRAY(J100) -> 2 | K107: 2 | L107: 2 | M107: 2 | N107: 2 | O107: 2 | P107: 2 | Q107: 2 | R107: 2 | S107: 2 | T107: 2 | U107: 2 | V107: 2 | AE107: =J100#
E108: Projected sales | G108: =Unit -> # | H108: ="Row "&ROW(J103) -> Row 103 | J108: =_xlfn.ANCHORARRAY(J103) -> 100 | K108: 200 | L108: 300 | M108: 400 | N108: 500 | O108: 600 | P108: 700 | Q108: 800 | R108: 900 | S108: 1000 | T108: 1100 | U108: 1200 | V108: 1300 | AE108: =J103#
E109: COGS | G109: =Weight -> kg | J109: =_xlfn.ANCHORARRAY(J107)*_xlfn.ANCHORARRAY(J108) -> 200 | K109: 400 | L109: 600 | M109: 800 | N109: 1000 | O109: 1200 | P109: 1400 | Q109: 1600 | R109: 1800 | S109: 2000 | T109: 2200 | U109: 2400 | V109: 2600 | AE109: =J107#*J108#
E111: Inventory movement pre-wastage | G111: =Weight -> kg | I111: Opening balance | J111: =_xlfn.ANCHORARRAY(J133)+_xlfn.ANCHORARRAY(J134) -> 200 | K111: 375 | L111: -275 | M111: -250 | N111: 0 | O111: 10 | P111: 20 | Q111: 30 | R111: 40 | S111: 50 | T111: 60 | U111: 70 | V111: 80 | AE111: =J133#+J134#
E112: Closing inventory balance | G112: =Weight -> kg | I112: =I136 -> 13 | J112: =_xlfn.SCAN($I$112,_xlfn.ANCHORARRAY(J$9),_xlfn.LAMBDA(_xlpm.accumulator,_xlpm.period, (_xlpm.accumulator+INDEX(_xlfn.ANCHORARRAY(J111),_xlpm.period))*(1-INDEX(_xlfn.ANCHORARRAY(J101),_xlpm.period)))) -> 206.61 | K112: 569.9778 | L112: 289.078244 | M112: 38.68746156 | N112: 38.30058694 | O112: 47.81758107 | P112: 67.13940526 | Q112: 96.16801121 | R112: 134.8063311 | S112: 182.9582678 | T112: 240.5286851 | U112: 307.4233983 | V112: 383.5491643 | AE112: =SCAN($I$112,J$9#,LAMBDA(accumulator,period, (accumulator+INDEX(J111#,period))*(1-INDEX(J101#,period))))
E113: Inventory balance pre-wastage | G113: =Weight -> kg | J113: =OFFSET(_xlfn.ANCHORARRAY(J112),,-1)+_xlfn.ANCHORARRAY(J111) -> 213 | K113: 581.61 | L113: 294.9778 | M113: 39.078244 | N113: 38.68746156 | O113: 48.30058694 | P113: 67.81758107 | Q113: 97.13940526 | R113: 136.1680112 | S113: 184.8063311 | T113: 242.9582678 | U113: 310.5286851 | V113: 387.4233983 | AE113: =OFFSET(J112#,,-1)+J111#
E114: Wastage | G114: =Percentage -> % | H114: ="Row "&ROW(J101) -> Row 101 | J114: =_xlfn.ANCHORARRAY(J101) -> 0.03 | K114: 0.02 | L114: 0.02 | M114: 0.01 | N114: 0.01 | O114: 0.01 | P114: 0.01 | Q114: 0.01 | R114: 0.01 | S114: 0.01 | T114: 0.01 | U114: 0.01 | V114: 0.01 | AE114: =J101#
E115: Wastage | G115: =Weight -> kg | J115: =_xlfn.ANCHORARRAY(J113)*_xlfn.ANCHORARRAY(J114) -> 6.39 | K115: 11.6322 | L115: 5.899556 | M115: 0.39078244 | N115: 0.3868746156 | O115: 0.4830058694 | P115: 0.6781758107 | Q115: 0.9713940526 | R115: 1.361680112 | S115: 1.848063311 | T115: 2.429582678 | U115: 3.105286851 | V115: 3.874233983 | AE115: =J113#*J114#
E117: Inventory balance pre-COGS transfer | G117: =Weight -> kg | J117: =_xlfn.ANCHORARRAY(J132)+_xlfn.ANCHORARRAY(J133) -> 413 | K117: 981.61 | L117: 894.9778 | M117: 839.078244 | N117: 1038.687462 | O117: 1248.300587 | P117: 1467.817581 | Q117: 1697.139405 | R117: 1936.168011 | S117: 2184.806331 | T117: 2442.958268 | U117: 2710.528685 | V117: 2987.423398 | AE117: =J132#+J133#
E118: Inventory balance pre-COGS transfer | G118: =Currency -> US$'000 | J118: =_xlfn.ANCHORARRAY(J140)+_xlfn.ANCHORARRAY(J141) -> 1596 | K118: 4479.675085 | L118: 3511.150507 | M118: 3422.10324 | N118: 5157.783244 | O118: 5718.678226 | P118: 6910.100507 | Q118: 8229.724725 | R118: 9662.655445 | S118: 11211.81555 | T118: 12880.7307 | U118: 14672.90046 | V118: 16591.77457 | AE118: =J140#+J141#
E119: COGS | G119: =Weight -> kg | H119: ="Row "&ROW(J109) -> Row 109 | J119: =_xlfn.ANCHORARRAY(J109) -> 200 | K119: 400 | L119: 600 | M119: 800 | N119: 1000 | O119: 1200 | P119: 1400 | Q119: 1600 | R119: 1800 | S119: 2000 | T119: 2200 | U119: 2400 | V119: 2600 | AE119: =J109#
E120: COGS | G120: =Currency -> US$'000 | J120: =_xlfn.ANCHORARRAY(J118)*_xlfn.ANCHORARRAY(J119)/_xlfn.ANCHORARRAY(J117) -> 772.8813559 | K120: 1825.439873 | L120: 2353.902303 | M120: 3262.726226 | N120: 4965.673925 | O120: 5497.404986 | P120: 6590.833108 | Q120: 7758.678821 | R120: 8983.094287 | S120: 10263.4411 | T120: 11599.71004 | U120: 12991.91604 | V120: 14440.07365 | AE120: =J118#*J119#/J117#
E122: Inventory balance pre-wastage | G122: =Weight -> kg | J122: =_xlfn.ANCHORARRAY(J117)-_xlfn.ANCHORARRAY(J119) -> 213 | K122: 581.61 | L122: 294.9778 | M122: 39.078244 | N122: 38.68746156 | O122: 48.30058694 | P122: 67.81758107 | Q122: 97.13940526 | R122: 136.1680112 | S122: 184.8063311 | T122: 242.9582678 | U122: 310.5286851 | V122: 387.4233983 | AE122: =J117#-J119#
E123: Inventory balance pre-wastage | G123: =Currency -> US$'000 | J123: =_xlfn.ANCHORARRAY(J118)-_xlfn.ANCHORARRAY(J120) -> 823.1186441 | K123: 2654.235212 | L123: 1157.248205 | M123: 159.3770145 | N123: 192.1093191 | O123: 221.2732396 | P123: 319.267399 | Q123: 471.0459039 | R123: 679.5611576 | S123: 948.374447 | T123: 1281.020663 | U123: 1680.984418 | V123: 2151.700925 | AE123: =J118#-J120#
E124: Wastage | G124: =Weight -> kg | H124: ="Row "&ROW(J115) -> Row 115 | J124: =_xlfn.ANCHORARRAY(J115) -> 6.39 | K124: 11.6322 | L124: 5.899556 | M124: 0.39078244 | N124: 0.3868746156 | O124: 0.4830058694 | P124: 0.6781758107 | Q124: 0.9713940526 | R124: 1.361680112 | S124: 1.848063311 | T124: 2.429582678 | U124: 3.105286851 | V124: 3.874233983 | AE124: =J115#
E125: Wastage | G125: =Currency -> US$'000 | J125: =_xlfn.ANCHORARRAY(J123)*_xlfn.ANCHORARRAY(J124)/_xlfn.ANCHORARRAY(J122) -> 24.69355932 | K125: 53.08470423 | L125: 23.14496409 | M125: 1.593770145 | N125: 1.921093191 | O125: 2.212732396 | P125: 3.19267399 | Q125: 4.710459039 | R125: 6.795611576 | S125: 9.48374447 | T125: 12.81020663 | U125: 16.80984418 | V125: 21.51700925 | AE125: =J123#*J124#/J122#
E127: Proportion used | G127: =Percentage -> % | I127: Opening balance | J127: =-(_xlfn.ANCHORARRAY(J134)+_xlfn.ANCHORARRAY(J135))/(_xlfn.ANCHORARRAY(J132)+_xlfn.ANCHORARRAY(J133)) -> 0.4997336562 | K127: 0.419343935 | L127: 0.6769995367 | M127: 0.9538929035 | N127: 0.9631259755 | O127: 0.9616938568 | P127: 0.9542590264 | Q127: 0.9433352317 | R127: 0.9303746729 | S127: 0.9162588165 | T127: 0.9015420409 | U127: 0.886581758 | V127: 0.8716120505 | AE127: =-(J134#+J135#)/(J132#+J133#)
E128: Closing inventory | G128: =Currency -> US$'000 | I128: =I144 -> 0 | J128: =_xlfn.SCAN(I128,_xlfn.ANCHORARRAY( J$9), _xlfn.LAMBDA(_xlpm.accumulator,_xlpm.period, (_xlpm.accumulator+INDEX(_xlfn.ANCHORARRAY(J99),_xlpm.period))*(1-INDEX(_xlfn.ANCHORARRAY(J127),_xlpm.period)))) -> 798.4250847 | K128: 2601.150507 | L128: 1134.10324 | M128: 157.7832443 | N128: 190.1882259 | O128: 219.0605072 | P128: 316.0747251 | Q128: 466.3354449 | R128: 672.765546 | S128: 938.8907025 | T128: 1268.210456 | U128: 1664.174574 | V128: 2130.183916 | AE128: =SCAN(I128, J$9#, LAMBDA(accumulator,period, (accumulator+INDEX(J99#,period))*(1-INDEX(J127#,period))))
D130: Inventory at hand (kg)
E132: Opening inventory | G132: =Weight -> kg | J132: =OFFSET(_xlfn.ANCHORARRAY(J136),,-1) -> 13 | K132: 206.61 | L132: 569.9778 | M132: 289.078244 | N132: 38.68746156 | O132: 38.30058694 | P132: 47.81758107 | Q132: 67.13940526 | R132: 96.16801121 | S132: 134.8063311 | T132: 182.9582678 | U132: 240.5286851 | V132: 307.4233983 | AE132: =OFFSET(J136#,,-1)
E133: Purchases | G133: =Weight -> kg | J133: =_xlfn.ANCHORARRAY(J98) -> 400 | K133: 775 | L133: 325 | M133: 550 | N133: 1000 | O133: 1210 | P133: 1420 | Q133: 1630 | R133: 1840 | S133: 2050 | T133: 2260 | U133: 2470 | V133: 2680 | AE133: =J98#
E134: COGS | G134: =Weight -> kg | J134: =-_xlfn.ANCHORARRAY(J109) -> -200 | K134: -400 | L134: -600 | M134: -800 | N134: -1000 | O134: -1200 | P134: -1400 | Q134: -1600 | R134: -1800 | S134: -2000 | T134: -2200 | U134: -2400 | V134: -2600 | AE134: =-J109#
E135: Wastage | G135: =Weight -> kg | J135: =-_xlfn.ANCHORARRAY(J115) -> -6.39 | K135: -11.6322 | L135: -5.899556 | M135: -0.39078244 | N135: -0.3868746156 | O135: -0.4830058694 | P135: -0.6781758107 | Q135: -0.9713940526 | R135: -1.361680112 | S135: -1.848063311 | T135: -2.429582678 | U135: -3.105286851 | V135: -3.874233983 | AE135: =-J115#
E136: Closing inventory | G136: =Weight -> kg | I136: ='General Assumptions'!$I$46 -> 13 | J136: =_xlfn.SCAN(I136,_xlfn.ANCHORARRAY(J133)+_xlfn.ANCHORARRAY(J134)+_xlfn.ANCHORARRAY(J135), _xlfn.LAMBDA(_xlpm.accumulator,_xlpm.value,_xlpm.accumulator+_xlpm.value)) -> 206.61 | K136: 569.9778 | L136: 289.078244 | M136: 38.68746156 | N136: 38.30058694 | O136: 47.81758107 | P136: 67.13940526 | Q136: 96.16801121 | R136: 134.8063311 | S136: 182.9582678 | T136: 240.5286851 | U136: 307.4233983 | V136: 383.5491643 | AE136: =SCAN(I136,J133#+J134#+J135#, LAMBDA(accumulator,value,accumulator+value))
D138: Inventory ($)
E140: Opening inventory | G140: =Currency -> US$'000 | J140: =OFFSET(_xlfn.ANCHORARRAY(J144),,-1) -> 0 | K140: 798.4250847 | L140: 2601.150507 | M140: 1134.10324 | N140: 157.7832443 | O140: 190.1882259 | P140: 219.0605072 | Q140: 316.0747251 | R140: 466.3354449 | S140: 672.765546 | T140: 938.8907025 | U140: 1268.210456 | V140: 1664.174574 | AD140: =Balance_Sheet -> BS | AE140: =IFERROR(_xlfn.FORMULATEXT(J140),"") -> =OFFSET(J144#,,-1)
E141: Purchases | G141: =Currency -> US$'000 | J141: =_xlfn.ANCHORARRAY(J99) -> 1596 | K141: 3681.25 | L141: 910 | M141: 2288 | N141: 5000 | O141: 5528.49 | P141: 6691.04 | Q141: 7913.65 | R141: 9196.32 | S141: 10539.05 | T141: 11941.84 | U141: 13404.69 | V141: 14927.6 | AE141: =J99#
E142: COGS | G142: =Currency -> US$'000 | J142: =-_xlfn.ANCHORARRAY(J120) -> -772.8813559 | K142: -1825.439873 | L142: -2353.902303 | M142: -3262.726226 | N142: -4965.673925 | O142: -5497.404986 | P142: -6590.833108 | Q142: -7758.678821 | R142: -8983.094287 | S142: -10263.4411 | T142: -11599.71004 | U142: -12991.91604 | V142: -14440.07365 | AD142: =Income_Statement -> IS | AE142: =-J120#
E143: Wastage | G143: =Currency -> US$'000 | J143: =-_xlfn.ANCHORARRAY(J125) -> -24.69355932 | K143: -53.08470423 | L143: -23.14496409 | M143: -1.593770145 | N143: -1.921093191 | O143: -2.212732396 | P143: -3.19267399 | Q143: -4.710459039 | R143: -6.795611576 | S143: -9.48374447 | T143: -12.81020663 | U143: -16.80984418 | V143: -21.51700925 | AD143: =Income_Statement -> IS | AE143: =-J125#
E144: Closing inventory | G144: =Currency -> US$'000 | I144: ='Opening Balance Sheet'!$I$16 -> 0 | J144: =_xlfn.ANCHORARRAY(J128) -> 798.4250847 | K144: 2601.150507 | L144: 1134.10324 | M144: 157.7832443 | N144: 190.1882259 | O144: 219.0605072 | P144: 316.0747251 | Q144: 466.3354449 | R144: 672.765546 | S144: 938.8907025 | T144: 1268.210456 | U144: 1664.174574 | V144: 2130.183916 | AD144: =Balance_Sheet -> BS | AE144: =J128#
C147: Opex and cash payments
C148: ='General Assumptions'!C54 -> All expenses are assumed to be paid as they are incurred
D150: ='General Assumptions'!D56 -> Opex
E152: ='General Assumptions'!E58 -> Growth rates used from | G152: =Year -> Year | I152: ='General Assumptions'!I58 -> 2027-06-30
E153: Growth rates flag | G153: =Boolean -> [1,0] | J153: =($I$152<=_xlfn.ANCHORARRAY(J$7))*1 -> 0 | K153: 0 | L153: 1 | M153: 1 | N153: 1 | O153: 1 | P153: 1 | Q153: 1 | R153: 1 | S153: 1 | T153: 1 | U153: 1 | V153: 1 | AE153: =($I$152<=J$7#)*1
E155: ='General Assumptions'!E59 -> Amounts | G155: =Currency -> US$'000 | J155: =_xlfn.ANCHORARRAY('General Assumptions'!J59) -> 60 | K155: 65 | L155: 70 | M155: 75 | N155: 80 | O155: 85 | P155: 90 | Q155: 95 | R155: 100 | S155: 105 | T155: 110 | U155: 115 | V155: 120 | AE155: ='General Assumptions'!J59#
E156: ='General Assumptions'!E60 -> Growth rates | G156: =Percentage -> % | J156: =_xlfn.ANCHORARRAY('General Assumptions'!J60) -> 0 | K156: 0.05 | L156: 0.04 | M156: 0.03 | N156: 0.02 | O156: 0.01 | P156: 0.01 | Q156: 0.01 | R156: 0.01 | S156: 0.01 | T156: 0.01 | U156: 0.01 | V156: 0.01 | AE156: ='General Assumptions'!J60#
E158: =D150 -> Opex | G158: =Currency -> US$'000 | J158: =_xlfn.SCAN(1,_xlfn.ANCHORARRAY(J$9),_xlfn.LAMBDA(_xlpm.accumulator,_xlpm.period, (1-INDEX(_xlfn.ANCHORARRAY(J153),_xlpm.period))*INDEX(_xlfn.ANCHORARRAY(J155),_xlpm.period) +INDEX(_xlfn.ANCHORARRAY(J153),_xlpm.period)*_xlpm.accumulator*(1+INDEX(_xlfn.ANCHORARRAY(J156),_xlpm.period)))) -> 60 | K158: 65 | L158: 67.6 | M158: 69.628 | N158: 71.02056 | O158: 71.7307656 | P158: 72.44807326 | Q158: 73.17255399 | R158: 73.90427953 | S158: 74.64332232 | T158: 75.38975555 | U158: 76.1436531 | V158: 76.90508963 | AE158: =SCAN(1,J$9#,LAMBDA(accumulator,period, (1-INDEX(J153#,period))*INDEX(J155#,period) +INDEX(J153#,period)*accumulator*(1+INDEX(J156#,period))))
D160: Working capital
E162: =E53 -> Days payable | G162: =No._of_days -> Year | J162: =IF(_xlfn.ANCHORARRAY(J$9),,) -> 0 | K162: 0 | L162: 0 | M162: 0 | N162: 0 | O162: 0 | P162: 0 | Q162: 0 | R162: 0 | S162: 0 | T162: 0 | U162: 0 | V162: 0 | AE162: =IF(J$9#,,)
E164: Days in period | G164: =No._of_days -> Year | J164: =_xlfn.ANCHORARRAY(J$8) -> 365 | K164: 365 | L164: 365 | M164: 366 | N164: 365 | O164: 365 | P164: 365 | Q164: 366 | R164: 365 | S164: 365 | T164: 365 | U164: 366 | V164: 365 | AE164: =J$8#
E166: Closing payables | G166: =Currency -> US$'000 | J166: =_xlfn.ANCHORARRAY(J158)*_xlfn.ANCHORARRAY(J162)/_xlfn.ANCHORARRAY(J164) -> 0 | K166: 0 | L166: 0 | M166: 0 | N166: 0 | O166: 0 | P166: 0 | Q166: 0 | R166: 0 | S166: 0 | T166: 0 | U166: 0 | V166: 0 | AE166: =J158#*J162#/J164#
D168: Control account
E170: Opening payables | G170: =Currency -> US$'000 | J170: =OFFSET(_xlfn.ANCHORARRAY(J173),,-1) -> 0 | K170: 0 | L170: 0 | M170: 0 | N170: 0 | O170: 0 | P170: 0 | Q170: 0 | R170: 0 | S170: 0 | T170: 0 | U170: 0 | V170: 0 | AD170: BS | AE170: =OFFSET(J173#,,-1)
E171: =D150 -> Opex | G171: =Currency -> US$'000 | J171: =_xlfn.ANCHORARRAY(J158) -> 60 | K171: 65 | L171: 67.6 | M171: 69.628 | N171: 71.02056 | O171: 71.7307656 | P171: 72.44807326 | Q171: 73.17255399 | R171: 73.90427953 | S171: 74.64332232 | T171: 75.38975555 | U171: 76.1436531 | V171: 76.90508963 | AD171: IS | AE171: =J158#
E172: Cash payments | G172: =Currency -> US$'000 | J172: =_xlfn.ANCHORARRAY(J173)-_xlfn.ANCHORARRAY(J170)-_xlfn.ANCHORARRAY(J171) -> -60 | K172: -65 | L172: -67.6 | M172: -69.628 | N172: -71.02056 | O172: -71.7307656 | P172: -72.44807326 | Q172: -73.17255399 | R172: -73.90427953 | S172: -74.64332232 | T172: -75.38975555 | U172: -76.1436531 | V172: -76.90508963 | AD172: CFS | AE172: =J173#-J170#-J171#
E173: Closing payables | G173: =Currency -> US$'000 | J173: =_xlfn.ANCHORARRAY(J166) -> 0 | K173: 0 | L173: 0 | M173: 0 | N173: 0 | O173: 0 | P173: 0 | Q173: 0 | R173: 0 | S173: 0 | T173: 0 | U173: 0 | V173: 0 | AD173: BS | AE173: =J166#
C176: ='General Assumptions'!C63 -> Capex and related | AE176: =IFERROR(_xlfn.FORMULATEXT(J176),"") -> 
D178: ='General Assumptions'!D65 -> Capital expenditure
E180: Existing assets | G180: =Currency -> US$'000 | I180: ='Opening Balance Sheet'!$I$21 -> 0 | AE180: =IFERROR(_xlfn.FORMULATEXT(I180),"") -> ='Opening Balance Sheet'!$I$21
E181: ='General Assumptions'!E67 -> Capital expenditure | G181: =Currency -> US$'000 | J181: =OFFSET('General Assumptions'!J67,,,,MAX(_xlfn.ANCHORARRAY(J$9))) -> 150 | K181: 180 | L181: 120 | M181: 90 | N181: 100 | O181: 150 | P181: 180 | Q181: 120 | R181: 90 | S181: 100 | T181: 150 | U181: 180 | V181: 120 | AE181: =IFERROR(_xlfn.FORMULATEXT(J181),"") -> =OFFSET('General Assumptions'!J67,,,,MAX(J$9#))
AE182: =IFERROR(_xlfn.FORMULATEXT(J182),"") -> 
D183: ='General Assumptions'!D69 -> Accounting depreciation - straight line | AE183: =IFERROR(_xlfn.FORMULATEXT(J183),"") -> 
AE184: =IFERROR(_xlfn.FORMULATEXT(J184),"") -> 
E185: ='General Assumptions'!E71 -> Remaining life of existing assets | G185: =No_of_Years -> # Year(s) | I185: ='General Assumptions'!I71 -> 5 | AE185: =IFERROR(_xlfn.FORMULATEXT(I185),"") -> ='General Assumptions'!I71
E186: ='General Assumptions'!E72 -> Annual rate | G186: =Percentage -> % | I186: ='General Assumptions'!I72 -> 0.2 | AE186: ='General Assumptions'!I72
E188: ='General Assumptions'!E74 -> Economic life of new capex | G188: =No_of_Years -> # Year(s) | I188: ='General Assumptions'!I74 -> 4 | AE188: ='General Assumptions'!I74
E189: ='General Assumptions'!E75 -> Annual rate | G189: =Percentage -> % | I189: ='General Assumptions'!I75 -> 0.25 | AE189: ='General Assumptions'!I75
E191: Depreciation - existing assets | G191: =Currency -> US$'000 | I191: =I180*I186 -> 0 | AE191: =I180*I186
E192: Depreciation - new assets | G192: =Currency -> US$'000 | J192: =_xlfn.ANCHORARRAY(J181)*$I$189 -> 37.5 | K192: 45 | L192: 30 | M192: 22.5 | N192: 25 | O192: 37.5 | P192: 45 | Q192: 30 | R192: 22.5 | S192: 25 | T192: 37.5 | U192: 45 | V192: 30 | AE192: =IFERROR(_xlfn.FORMULATEXT(J192),"") -> =J181#*$I$189
E193: Aggregate depreciation - existing assets | G193: =Currency -> US$'000 | J193: =IF(_xlfn.ANCHORARRAY(J$9)>$I$185,,$I$191) -> 0 | K193: 0 | L193: 0 | M193: 0 | N193: 0 | O193: 0 | P193: 0 | Q193: 0 | R193: 0 | S193: 0 | T193: 0 | U193: 0 | V193: 0 | AE193: =IF(J$9#>$I$185,,$I$191)
E194: Aggregate depreciation - new assets | G194: =Currency -> US$'000 | J194: =_xlfn.MAP(_xlfn.ANCHORARRAY(J9),_xlfn.LAMBDA(_xlpm.period, SUM(OFFSET(INDEX(_xlfn.ANCHORARRAY(J192),_xlpm.period),,,,-MIN(_xlpm.period,$I$188))))) -> 37.5 | K194: 82.5 | L194: 112.5 | M194: 135 | N194: 122.5 | O194: 115 | P194: 130 | Q194: 137.5 | R194: 135 | S194: 122.5 | T194: 115 | U194: 130 | V194: 137.5 | AE194: =MAP(J9#,LAMBDA(period, SUM(OFFSET(INDEX(J192#,period),,,,-MIN(period,$I$188)))))
E195: Total depreciation | G195: =Currency -> US$'000 | J195: =_xlfn.ANCHORARRAY(J193)+_xlfn.ANCHORARRAY(J194) -> 37.5 | K195: 82.5 | L195: 112.5 | M195: 135 | N195: 122.5 | O195: 115 | P195: 130 | Q195: 137.5 | R195: 135 | S195: 122.5 | T195: 115 | U195: 130 | V195: 137.5 | AE195: =J193#+J194#
D197: Control account | AE197: =IFERROR(_xlfn.FORMULATEXT(J197),"") -> 
AE198: =IFERROR(_xlfn.FORMULATEXT(J198),"") -> 
E199: Opening net book value | G199: =Currency -> US$'000 | J199: =OFFSET(_xlfn.ANCHORARRAY(J202),,-1) -> 0 | K199: 112.5 | L199: 210 | M199: 217.5 | N199: 172.5 | O199: 150 | P199: 185 | Q199: 235 | R199: 217.5 | S199: 172.5 | T199: 150 | U199: 185 | V199: 235 | AD199: BS | AE199: =IFERROR(_xlfn.FORMULATEXT(J199),"") -> =OFFSET(J202#,,-1)
E200: Capital expenditure | G200: =Currency -> US$'000 | J200: =_xlfn.ANCHORARRAY(J181) -> 150 | K200: 180 | L200: 120 | M200: 90 | N200: 100 | O200: 150 | P200: 180 | Q200: 120 | R200: 90 | S200: 100 | T200: 150 | U200: 180 | V200: 120 | AD200: =Cash_Flow_Statement -> CFS | AE200: =J181#
E201: Depreciation | G201: =Currency -> US$'000 | J201: =-_xlfn.ANCHORARRAY(J195) -> -37.5 | K201: -82.5 | L201: -112.5 | M201: -135 | N201: -122.5 | O201: -115 | P201: -130 | Q201: -137.5 | R201: -135 | S201: -122.5 | T201: -115 | U201: -130 | V201: -137.5 | AD201: =Income_Statement -> IS | AE201: =-J195#
E202: Closing net book value | G202: =Currency -> US$'000 | I202: ='Opening Balance Sheet'!$I$21 -> 0 | J202: =_xlfn.SCAN(I202,_xlfn.ANCHORARRAY(J200)+_xlfn.ANCHORARRAY(J201),_xlfn.LAMBDA(_xlpm.accumulator,_xlpm.depreciation,_xlpm.accumulator+_xlpm.depreciation)) -> 112.5 | K202: 210 | L202: 217.5 | M202: 172.5 | N202: 150 | O202: 185 | P202: 235 | Q202: 217.5 | R202: 172.5 | S202: 150 | T202: 185 | U202: 235 | V202: 217.5 | AD202: BS | AE202: =SCAN(I202,J200#+J201#,LAMBDA(accumulator,depreciation,accumulator+depreciation))

Sheet Opening Balance Sheet
A1: =IF(ISERROR(RIGHT(CELL("filename",A1),LEN(CELL("filename",A1))-FIND("]",CELL("filename",A1)))), "", RIGHT(CELL("filename",A1),LEN(CELL("filename",A1))-FIND("]",CELL("filename",A1)))) -> Opening Balance Sheet
A2: =Model_Name -> Model 10 - Capital Expenditure Completed.xlsm
A3: Navigator
B4: Error Checks: | F4: =Overall_Error_Check -> 0
I5: =Model_Start_Date-1 -> 2024-06-30
C6: =Timing!C6 -> Start Date
C7: End Date
C8: Number of Days
C9: Counter
B11: =MAX($B$10:$B10)+1 -> 1 | C11: =A1 -> Opening Balance Sheet
C13: Current assets
D14: Cash | G14: =Currency -> US$'000 | K14: 2500
D15: Accounts receivable | G15: =Currency -> US$'000 | K15: 50
D16: Inventory | G16: =Currency -> US$'000 | K16: 50
D17: Other current assets | G17: =Currency -> US$'000 | K17: 10
D18: Total current assets | G18: =Currency -> US$'000 | K18: =SUM(K14:K17) -> 2610
C20: Non-current assets
D21: PP&E | G21: =Currency -> US$'000 | K21: 450
D22: Deferred tax assets | G22: =Currency -> US$'000 | K22: 75
D23: Total non-current assets | G23: =Currency -> US$'000 | K23: =SUM(K21:K22) -> 525
C25: Total assets | G25: =Currency -> US$'000 | K25: =K18+K23 -> 3135
C27: Current liabilities
D28: Accounts payable | G28: =Currency -> US$'000 | K28: 30
D29: Interest payable | G29: US$'000 | K29: 20
D30: Dividends payable | G30: US$'000 | K30: 15
D31: Tax payable | G31: US$'000 | K31: 40
D32: Other current liabilities | G32: US$'000 | K32: 10
D33: Total current liabilities | G33: US$'000 | K33: =SUM(K28:K32) -> 115
C35: Non-current liabilities
D36: Debt | G36: =Currency -> US$'000 | K36: 150
D37: Deferred tax liabilities | G37: =Currency -> US$'000 | K37: 25
D38: Total non-current liabilities | G38: =Currency -> US$'000 | K38: =SUM(K36:K37) -> 175
C40: Total liabilities | G40: =Currency -> US$'000 | K40: =K33+K38 -> 290
C42: Net assets | G42: =Currency -> US$'000 | K42: =K25-K40 -> 2845
C45: Equity
D46: Ordinary equity | G46: =Currency -> US$'000 | K46: 300
E47: Opening retained profits | G47: US$'000 | K47: =K42-SUM(K46,K48,K49) -> 2520
E48: NPAT | G48: US$'000 | K48: 25
E49: Dividends declared | G49: US$'000 | K49: 0
D50: Retained profits | G50: US$'000 | K50: =SUM(K47:K49) -> 2545
D51: Total equity | G51: US$'000 | K51: =K46+K50 -> 2845
C54: Checks
D56: PF error check | G56: [1,0] | I56: =IF(ISERROR(I42-I51),1,0) -> 0 | K56: =IFERROR(_xlfn.FORMULATEXT(HL_Op_BS_Errors),"") -> =IF(ISERROR(I42-I51),1,0)
D57: Balance check | G57: [1,0] | I57: =IF(I56<>0,0,(ROUND(I42-I51,Rounding_Accuracy)<>0)*1) -> 0 | K57: =IFERROR(_xlfn.FORMULATEXT(HL_Op_BS_Balance),"") -> =IF(I56<>0,0,(ROUND(I42-I51,Rounding_Accuracy)<>0)*1)
D58: Insolvency check | G58: [1,0] | I58: =IF(SUM(I56:I57)<>0,0,(I42<0)*1) -> 0 | K58: =IFERROR(_xlfn.FORMULATEXT(HL_Op_BS_Insolvency),"") -> =IF(SUM(I56:I57)<>0,0,(I42<0)*1)

Sheet Income Statement
A1: =IF(ISERROR(RIGHT(CELL("filename",A1),LEN(CELL("filename",A1))-FIND("]",CELL("filename",A1)))), "", RIGHT(CELL("filename",A1),LEN(CELL("filename",A1))-FIND("]",CELL("filename",A1)))) -> Income Statement
A2: =Model_Name -> Model 10 - Capital Expenditure Completed.xlsm
A3: Navigator
B4: Error Checks: | F4: =Overall_Error_Check -> 0
J5: =_xlfn.ANCHORARRAY(Timing!J5) -> 2025-06-30 | K5: 2026-06-30 | L5: 2027-06-30 | M5: 2028-06-30 | N5: 2029-06-30 | O5: 2030-06-30 | P5: 2031-06-30 | Q5: 2032-06-30 | R5: 2033-06-30 | S5: 2034-06-30 | T5: 2035-06-30 | U5: 2036-06-30 | V5: 2037-06-30
C6: Start Date | J6: =_xlfn.ANCHORARRAY(Timing!J6) -> 2024-07-01 | K6: 2025-07-01 | L6: 2026-07-01 | M6: 2027-07-01 | N6: 2028-07-01 | O6: 2029-07-01 | P6: 2030-07-01 | Q6: 2031-07-01 | R6: 2032-07-01 | S6: 2033-07-01 | T6: 2034-07-01 | U6: 2035-07-01 | V6: 2036-07-01
C7: End Date | J7: =_xlfn.ANCHORARRAY(Timing!J7) -> 2025-06-30 | K7: 2026-06-30 | L7: 2027-06-30 | M7: 2028-06-30 | N7: 2029-06-30 | O7: 2030-06-30 | P7: 2031-06-30 | Q7: 2032-06-30 | R7: 2033-06-30 | S7: 2034-06-30 | T7: 2035-06-30 | U7: 2036-06-30 | V7: 2037-06-30
C8: Number of Days | J8: =_xlfn.ANCHORARRAY(Timing!J8) -> 365 | K8: 365 | L8: 365 | M8: 366 | N8: 365 | O8: 365 | P8: 365 | Q8: 366 | R8: 365 | S8: 365 | T8: 365 | U8: 366 | V8: 365
C9: Counter | J9: =_xlfn.ANCHORARRAY(Timing!J9) -> 1 | K9: 2 | L9: 3 | M9: 4 | N9: 5 | O9: 6 | P9: 7 | Q9: 8 | R9: 9 | S9: 10 | T9: 11 | U9: 12 | V9: 13
B11: =MAX($B$10:$B10)+1 -> 1 | C11: =A1 -> Income Statement
D13: Revenue | G13: =Currency -> US$'000 | J13: =_xlfn.ANCHORARRAY(Calculations!J36) -> 1500 | K13: 3090 | L13: 4820.4 | M13: 6748.56 | N13: 8941.842 | O13: 11374.02302 | P13: 14065.87514 | Q13: 17039.80303 | R13: 20319.96511 | S13: 23932.40335 | T13: 27905.18231 | U13: 32268.53809 | V13: 37055.0379 | AD13: =IFERROR(_xlfn.FORMULATEXT(J13),"") -> =Calculations!J36#
D14: COGS | G14: =Currency -> US$'000 | J14: =-_xlfn.ANCHORARRAY(Calculations!J62)+_xlfn.ANCHORARRAY(Calculations!J142) -> -1222.881356 | K14: -2752.439873 | L14: -3800.022303 | M14: -5287.294226 | N14: -7648.226525 | O14: -8909.611894 | P14: -10810.59565 | Q14: -12870.61973 | R14: -15079.08382 | S14: -17443.1621 | T14: -19971.26473 | U14: -22672.47746 | V14: -25556.58502 | AD14: =-Calculations!J62#+Calculations!J142#
D15: Gross profit | G15: =Currency -> US$'000 | J15: =_xlfn.ANCHORARRAY(J13)+_xlfn.ANCHORARRAY(J14) -> 277.1186441 | K15: 337.5601268 | L15: 1020.377697 | M15: 1461.265774 | N15: 1293.615475 | O15: 2464.41113 | P15: 3255.27949 | Q15: 4169.183297 | R15: 5240.881289 | S15: 6489.241246 | T15: 7933.917575 | U15: 9596.060622 | V15: 11498.45288 | AD15: =J13#+J14#
D17: Wastage | G17: =Currency -> US$'000 | J17: =_xlfn.ANCHORARRAY(Calculations!J143) -> -24.69355932 | K17: -53.08470423 | L17: -23.14496409 | M17: -1.593770145 | N17: -1.921093191 | O17: -2.212732396 | P17: -3.19267399 | Q17: -4.710459039 | R17: -6.795611576 | S17: -9.48374447 | T17: -12.81020663 | U17: -16.80984418 | V17: -21.51700925 | AD17: =Calculations!J143#
D18: Operating expenditure | G18: =Currency -> US$'000 | J18: =-_xlfn.ANCHORARRAY(Calculations!J171) -> -60 | K18: -65 | L18: -67.6 | M18: -69.628 | N18: -71.02056 | O18: -71.7307656 | P18: -72.44807326 | Q18: -73.17255399 | R18: -73.90427953 | S18: -74.64332232 | T18: -75.38975555 | U18: -76.1436531 | V18: -76.90508963 | AD18: =-Calculations!J171#
D19: EBITDA | G19: =Currency -> US$'000 | J19: =_xlfn.ANCHORARRAY(J15)+_xlfn.ANCHORARRAY(J17)+_xlfn.ANCHORARRAY(J18) -> 192.4250847 | K19: 219.4754226 | L19: 929.6327331 | M19: 1390.044004 | N19: 1220.673822 | O19: 2390.467632 | P19: 3179.638742 | Q19: 4091.300284 | R19: 5160.181398 | S19: 6405.11418 | T19: 7845.717613 | U19: 9503.107125 | V19: 11400.03078 | AD19: =J15#+J17#+J18#
D21: Depreciation | G21: =Currency -> US$'000 | J21: =_xlfn.ANCHORARRAY(Calculations!J201) -> -37.5 | K21: -82.5 | L21: -112.5 | M21: -135 | N21: -122.5 | O21: -115 | P21: -130 | Q21: -137.5 | R21: -135 | S21: -122.5 | T21: -115 | U21: -130 | V21: -137.5 | AD21: =Calculations!J201#
D22: EBIT | G22: =Currency -> US$'000 | J22: =_xlfn.ANCHORARRAY(J19)+_xlfn.ANCHORARRAY(J21) -> 154.9250847 | K22: 136.9754226 | L22: 817.1327331 | M22: 1255.044004 | N22: 1098.173822 | O22: 2275.467632 | P22: 3049.638742 | Q22: 3953.800284 | R22: 5025.181398 | S22: 6282.61418 | T22: 7730.717613 | U22: 9373.107125 | V22: 11262.53078 | AD22: =J19#+J21#
D24: Interest expense | G24: =Currency -> US$'000
A25: w | D25: NPBT | G25: =Currency -> US$'000 | J25: =SUM(J22,J24) -> 154.9250847 | K25: =SUM(K22,K24) -> 136.9754226 | L25: =SUM(L22,L24) -> 817.1327331 | M25: =SUM(M22,M24) -> 1255.044004 | N25: =SUM(N22,N24) -> 1098.173822 | O25: =SUM(O22,O24) -> 2275.467632 | P25: =SUM(P22,P24) -> 3049.638742 | Q25: =SUM(Q22,Q24) -> 3953.800284 | R25: =SUM(R22,R24) -> 5025.181398 | S25: =SUM(S22,S24) -> 6282.61418 | T25: =SUM(T22,T24) -> 7730.717613 | U25: =SUM(U22,U24) -> 9373.107125 | V25: =SUM(V22,V24) -> 11262.53078 | W25: =SUM(W22,W24) -> 0 | X25: =SUM(X22,X24) -> 0 | Y25: =SUM(Y22,Y24) -> 0 | Z25: =SUM(Z22,Z24) -> 0 | AA25: =SUM(AA22,AA24) -> 0 | AB25: =SUM(AB22,AB24) -> 0 | AC25: =SUM(AC22,AC24) -> 0 | AD25: =SUM(J22,J24)
D27: Tax expense | G27: =Currency -> US$'000
A28: w | D28: NPAT | G28: =Currency -> US$'000 | J28: =SUM(J25,J27) -> 154.9250847 | K28: =SUM(K25,K27) -> 136.9754226 | L28: 817.1327331 | M28: 1255.044004 | N28: 1098.173822 | O28: 2275.467632 | P28: 3049.638742 | Q28: 3953.800284 | R28: 5025.181398 | S28: 6282.61418 | T28: 7730.717613 | U28: 9373.107125 | V28: 11262.53078 | W28: 0 | X28: 0 | Y28: 0 | Z28: 0 | AA28: 0 | AB28: 0 | AC28: 0 | AD28: =SUM(J25,J27)

Sheet Balance Sheet
A1: =IF(ISERROR(RIGHT(CELL("filename",A1),LEN(CELL("filename",A1))-FIND("]",CELL("filename",A1)))), "", RIGHT(CELL("filename",A1),LEN(CELL("filename",A1))-FIND("]",CELL("filename",A1)))) -> Balance Sheet
A2: =Model_Name -> Model 10 - Capital Expenditure Completed.xlsm
A3: Navigator
B4: Error Checks: | F4: =Overall_Error_Check -> 0
J5: =_xlfn.ANCHORARRAY(Timing!J5) -> 2025-06-30 | K5: 2026-06-30 | L5: 2027-06-30 | M5: 2028-06-30 | N5: 2029-06-30 | O5: 2030-06-30 | P5: 2031-06-30 | Q5: 2032-06-30 | R5: 2033-06-30 | S5: 2034-06-30 | T5: 2035-06-30 | U5: 2036-06-30 | V5: 2037-06-30
C6: Start Date | J6: =_xlfn.ANCHORARRAY(Timing!J6) -> 2024-07-01 | K6: 2025-07-01 | L6: 2026-07-01 | M6: 2027-07-01 | N6: 2028-07-01 | O6: 2029-07-01 | P6: 2030-07-01 | Q6: 2031-07-01 | R6: 2032-07-01 | S6: 2033-07-01 | T6: 2034-07-01 | U6: 2035-07-01 | V6: 2036-07-01
C7: End Date | J7: =_xlfn.ANCHORARRAY(Timing!J7) -> 2025-06-30 | K7: 2026-06-30 | L7: 2027-06-30 | M7: 2028-06-30 | N7: 2029-06-30 | O7: 2030-06-30 | P7: 2031-06-30 | Q7: 2032-06-30 | R7: 2033-06-30 | S7: 2034-06-30 | T7: 2035-06-30 | U7: 2036-06-30 | V7: 2037-06-30
C8: Number of Days | J8: =_xlfn.ANCHORARRAY(Timing!J8) -> 365 | K8: 365 | L8: 365 | M8: 366 | N8: 365 | O8: 365 | P8: 365 | Q8: 366 | R8: 365 | S8: 365 | T8: 365 | U8: 366 | V8: 365
C9: Counter | J9: =_xlfn.ANCHORARRAY(Timing!J9) -> 1 | K9: 2 | L9: 3 | M9: 4 | N9: 5 | O9: 6 | P9: 7 | Q9: 8 | R9: 9 | S9: 10 | T9: 11 | U9: 12 | V9: 13
B11: =MAX($B$10:$B10)+1 -> 1 | C11: =A1 -> Balance Sheet
C13: Current assets
A14: w | D14: Cash | G14: =Currency -> US$'000 | J14: =IF(J$9="",,IF(J$9=1,'Opening Balance Sheet'!$I$14,I14)) +'Cash Flow Statement'!J36 -> -760.4383562 | K14: =IF(K$9="",,IF(K$9=1,'Opening Balance Sheet'!$I$14,J14)) +'Cash Flow Statement'!K36 -> -2496.05137 | L14: =IF(L$9="",,IF(L$9=1,'Opening Balance Sheet'!$I$14,K14)) +'Cash Flow Statement'!L36 -> -603.5924658 | M14: =IF(M$9="",,IF(M$9=1,'Opening Balance Sheet'!$I$14,L14)) +'Cash Flow Statement'!M36 -> 1612.858262 | N14: =IF(N$9="",,IF(N$9=1,'Opening Balance Sheet'!$I$14,M14)) +'Cash Flow Statement'!N36 -> 2724.581235 | O14: =IF(O$9="",,IF(O$9=1,'Opening Balance Sheet'!$I$14,N14)) +'Cash Flow Statement'!O36 -> 4759.718301 | P14: =IF(P$9="",,IF(P$9=1,'Opening Balance Sheet'!$I$14,O14)) +'Cash Flow Statement'!P36 -> 7514.52195 | Q14: =IF(Q$9="",,IF(Q$9=1,'Opening Balance Sheet'!$I$14,P14)) +'Cash Flow Statement'!Q36 -> 11169.60643 | R14: =IF(R$9="",,IF(R$9=1,'Opening Balance Sheet'!$I$14,Q14)) +'Cash Flow Statement'!R36 -> 15839.78796 | S14: =IF(S$9="",,IF(S$9=1,'Opening Balance Sheet'!$I$14,R14)) +'Cash Flow Statement'!S36 -> 21662.53435 | T14: =IF(T$9="",,IF(T$9=1,'Opening Balance Sheet'!$I$14,S14)) +'Cash Flow Statement'!T36 -> 28785.04726 | U14: =IF(U$9="",,IF(U$9=1,'Opening Balance Sheet'!$I$14,T14)) +'Cash Flow Statement'!U36 -> 37442.8902 | V14: =IF(V$9="",,IF(V$9=1,'Opening Balance Sheet'!$I$14,U14)) +'Cash Flow Statement'!V36 -> 47944.36943 | W14: =IF(W$9="",,IF(W$9=1,'Opening Balance Sheet'!$I$14,V14)) +'Cash Flow Statement'!W36 -> 0 | X14: =IF(X$9="",,IF(X$9=1,'Opening Balance Sheet'!$I$14,W14)) +'Cash Flow Statement'!X36 -> 0 | Y14: =IF(Y$9="",,IF(Y$9=1,'Opening Balance Sheet'!$I$14,X14)) +'Cash Flow Statement'!Y36 -> 0 | Z14: =IF(Z$9="",,IF(Z$9=1,'Opening Balance Sheet'!$I$14,Y14)) +'Cash Flow Statement'!Z36 -> 0 | AA14: =IF(AA$9="",,IF(AA$9=1,'Opening Balance Sheet'!$I$14,Z14)) +'Cash Flow Statement'!AA36 -> 0 | AB14: =IF(AB$9="",,IF(AB$9=1,'Opening Balance Sheet'!$I$14,AA14)) +'Cash Flow Statement'!AB36 -> 0 | AC14: =IF(AC$9="",,IF(AC$9=1,'Opening Balance Sheet'!$I$14,AB14)) +'Cash Flow Statement'!AC36 -> 0 | AD14: =IFERROR(_xlfn.FORMULATEXT(J14),"") -> =IF(J$9="",,IF(J$9=1,'Opening Balance Sheet'!$I$14,I14)) +'Cash Flow Statement'!J36
D15: Accounts receivable | G15: =Currency -> US$'000 | J15: =_xlfn.ANCHORARRAY(Calculations!J38) -> 246.5753425 | K15: 507.9452055 | L15: 792.3945205 | M15: 1106.321311 | N15: 1469.891836 | O15: 1869.702415 | P15: 2312.198653 | Q15: 2793.410332 | R15: 3340.268237 | S15: 3934.093701 | T15: 4587.153256 | U15: 5289.924276 | V15: 6091.239107 | AD15: =Calculations!J38#
D16: Inventory | G16: =Currency -> US$'000 | J16: =_xlfn.ANCHORARRAY(Calculations!J144) -> 798.4250847 | K16: 2601.150507 | L16: 1134.10324 | M16: 157.7832443 | N16: 190.1882259 | O16: 219.0605072 | P16: 316.0747251 | Q16: 466.3354449 | R16: 672.765546 | S16: 938.8907025 | T16: 1268.210456 | U16: 1664.174574 | V16: 2130.183916 | AD16: =Calculations!J144#
D17: Other current assets | G17: =Currency -> US$'000
A18: w | D18: Total current assets | G18: =Currency -> US$'000 | J18: =SUM(J14:J17) -> 284.562071 | K18: =SUM(K14:K17) -> 613.044343 | L18: 1322.905295 | M18: 2876.962818 | N18: 4384.661296 | O18: 6848.481223 | P18: 10142.79533 | Q18: 14429.35221 | R18: 19852.82175 | S18: 26535.51876 | T18: 34640.41098 | U18: 44396.98905 | V18: 56165.79245 | W18: 0 | X18: 0 | Y18: 0 | Z18: 0 | AA18: 0 | AB18: 0 | AC18: 0 | AD18: =SUM(J14:J17)
C20: Non-current assets
D21: PP&E | G21: =Currency -> US$'000 | J21: =_xlfn.ANCHORARRAY(Calculations!J202) -> 112.5 | K21: 210 | L21: 217.5 | M21: 172.5 | N21: 150 | O21: 185 | P21: 235 | Q21: 217.5 | R21: 172.5 | S21: 150 | T21: 185 | U21: 235 | V21: 217.5 | AD21: =Calculations!J202#
D22: Deferred tax assets | G22: =Currency -> US$'000
A23: w | D23: Total non-current assets | G23: =Currency -> US$'000 | J23: =SUM(J21:J22) -> 112.5 | K23: =SUM(K21:K22) -> 210 | L23: 217.5 | M23: 172.5 | N23: 150 | O23: 185 | P23: 235 | Q23: 217.5 | R23: 172.5 | S23: 150 | T23: 185 | U23: 235 | V23: 217.5 | W23: 0 | X23: 0 | Y23: 0 | Z23: 0 | AA23: 0 | AB23: 0 | AC23: 0 | AD23: =SUM(J21:J22)
A25: w | C25: Total assets | G25: =Currency -> US$'000 | J25: =SUM(J18,J23) -> 397.062071 | K25: =SUM(K18,K23) -> 823.044343 | L25: 1540.405295 | M25: 3049.462818 | N25: 4534.661296 | O25: 7033.481223 | P25: 10377.79533 | Q25: 14646.85221 | R25: 20025.32175 | S25: 26685.51876 | T25: 34825.41098 | U25: 44631.98905 | V25: 56383.29245 | W25: 0 | X25: 0 | Y25: 0 | Z25: 0 | AA25: 0 | AB25: 0 | AC25: 0 | AD25: =SUM(J18,J23)
C27: Current liabilities
D28: Accounts payable | G28: =Currency -> US$'000 | J28: =_xlfn.ANCHORARRAY(Calculations!J64)+_xlfn.ANCHORARRAY(Calculations!J91)+_xlfn.ANCHORARRAY(Calculations!J173) -> 242.1369863 | K28: 531.1438356 | L28: 431.3720548 | M28: 685.3855738 | N28: 1072.41023 | O28: 1295.762525 | P28: 1590.437887 | Q28: 1905.694486 | R28: 2258.982624 | S28: 2636.565453 | T28: 3045.740061 | U28: 3479.211006 | V28: 3967.983626 | AD28: =Calculations!J64#+Calculations!J91#+Calculations!J173#
D29: Interest payable | G29: =Currency -> US$'000
D30: Dividends payable | G30: =Currency -> US$'000
D31: Tax payable | G31: =Currency -> US$'000
D32: Other current liabilities | G32: =Currency -> US$'000
A33: w | D33: Total current liabilities | G33: =Currency -> US$'000 | J33: =SUM(J28:J32) -> 242.1369863 | K33: =SUM(K28:K32) -> 531.1438356 | L33: 431.3720548 | M33: 685.3855738 | N33: 1072.41023 | O33: 1295.762525 | P33: 1590.437887 | Q33: 1905.694486 | R33: 2258.982624 | S33: 2636.565453 | T33: 3045.740061 | U33: 3479.211006 | V33: 3967.983626 | W33: 0 | X33: 0 | Y33: 0 | Z33: 0 | AA33: 0 | AB33: 0 | AC33: 0 | AD33: =SUM(J28:J32)
C35: Non-current liabilities
D36: Debt | G36: =Currency -> US$'000
D37: Deferred tax liabilities | G37: =Currency -> US$'000
A38: w | D38: Total non-current liabilities | G38: =Currency -> US$'000 | J38: =SUM(J36:J37) -> 0 | K38: =SUM(K36:K37) -> 0 | L38: 0 | M38: 0 | N38: 0 | O38: 0 | P38: 0 | Q38: 0 | R38: 0 | S38: 0 | T38: 0 | U38: 0 | V38: 0 | W38: 0 | X38: 0 | Y38: 0 | Z38: 0 | AA38: 0 | AB38: 0 | AC38: 0 | AD38: =SUM(J36:J37)
A40: w | C40: Total liabilities | G40: =Currency -> US$'000 | J40: =SUM(J33,J38) -> 242.1369863 | K40: =SUM(K33,K38) -> 531.1438356 | L40: 431.3720548 | M40: 685.3855738 | N40: 1072.41023 | O40: 1295.762525 | P40: 1590.437887 | Q40: 1905.694486 | R40: 2258.982624 | S40: 2636.565453 | T40: 3045.740061 | U40: 3479.211006 | V40: 3967.983626 | W40: 0 | X40: 0 | Y40: 0 | Z40: 0 | AA40: 0 | AB40: 0 | AC40: 0 | AD40: =SUM(J33,J38)
A42: w | C42: Net assets | G42: =Currency -> US$'000 | J42: =J25-J40 -> 154.9250847 | K42: =K25-K40 -> 291.9005073 | L42: 1109.03324 | M42: 2364.077244 | N42: 3462.251066 | O42: 5737.718698 | P42: 8787.357441 | Q42: 12741.15773 | R42: 17766.33912 | S42: 24048.9533 | T42: 31779.67092 | U42: 41152.77804 | V42: 52415.30882 | W42: 0 | X42: 0 | Y42: 0 | Z42: 0 | AA42: 0 | AB42: 0 | AC42: 0 | AD42: =J25-J40
C45: Equity
D46: Ordinary equity | G46: =Currency -> US$'000
A47: w | E47: Opening retained profits | G47: =Currency -> US$'000 | J47: =IF(J$9="",,IF(J$9=1,'Opening Balance Sheet'!$I$50,I50)) -> 0 | K47: =IF(K$9="",,IF(K$9=1,'Opening Balance Sheet'!$I$50,J50)) -> 154.9250847 | L47: =IF(L$9="",,IF(L$9=1,'Opening Balance Sheet'!$I$50,K50)) -> 291.9005073 | M47: =IF(M$9="",,IF(M$9=1,'Opening Balance Sheet'!$I$50,L50)) -> 1109.03324 | N47: =IF(N$9="",,IF(N$9=1,'Opening Balance Sheet'!$I$50,M50)) -> 2364.077244 | O47: =IF(O$9="",,IF(O$9=1,'Opening Balance Sheet'!$I$50,N50)) -> 3462.251066 | P47: =IF(P$9="",,IF(P$9=1,'Opening Balance Sheet'!$I$50,O50)) -> 5737.718698 | Q47: =IF(Q$9="",,IF(Q$9=1,'Opening Balance Sheet'!$I$50,P50)) -> 8787.357441 | R47: =IF(R$9="",,IF(R$9=1,'Opening Balance Sheet'!$I$50,Q50)) -> 12741.15773 | S47: =IF(S$9="",,IF(S$9=1,'Opening Balance Sheet'!$I$50,R50)) -> 17766.33912 | T47: =IF(T$9="",,IF(T$9=1,'Opening Balance Sheet'!$I$50,S50)) -> 24048.9533 | U47: =IF(U$9="",,IF(U$9=1,'Opening Balance Sheet'!$I$50,T50)) -> 31779.67092 | V47: =IF(V$9="",,IF(V$9=1,'Opening Balance Sheet'!$I$50,U50)) -> 41152.77804 | W47: =IF(W$9="",,IF(W$9=1,'Opening Balance Sheet'!$I$50,V50)) -> 0 | X47: =IF(X$9="",,IF(X$9=1,'Opening Balance Sheet'!$I$50,W50)) -> 0 | Y47: =IF(Y$9="",,IF(Y$9=1,'Opening Balance Sheet'!$I$50,X50)) -> 0 | Z47: =IF(Z$9="",,IF(Z$9=1,'Opening Balance Sheet'!$I$50,Y50)) -> 0 | AA47: =IF(AA$9="",,IF(AA$9=1,'Opening Balance Sheet'!$I$50,Z50)) -> 0 | AB47: =IF(AB$9="",,IF(AB$9=1,'Opening Balance Sheet'!$I$50,AA50)) -> 0 | AC47: =IF(AC$9="",,IF(AC$9=1,'Opening Balance Sheet'!$I$50,AB50)) -> 0 | AD47: =IF(J$9="",,IF(J$9=1,'Opening Balance Sheet'!$I$50,I50))
A48: w | E48: NPAT | G48: =Currency -> US$'000 | J48: ='Income Statement'!J28 -> 154.9250847 | K48: ='Income Statement'!K28 -> 136.9754226 | L48: ='Income Statement'!L28 -> 817.1327331 | M48: ='Income Statement'!M28 -> 1255.044004 | N48: ='Income Statement'!N28 -> 1098.173822 | O48: ='Income Statement'!O28 -> 2275.467632 | P48: ='Income Statement'!P28 -> 3049.638742 | Q48: ='Income Statement'!Q28 -> 3953.800284 | R48: ='Income Statement'!R28 -> 5025.181398 | S48: ='Income Statement'!S28 -> 6282.61418 | T48: ='Income Statement'!T28 -> 7730.717613 | U48: ='Income Statement'!U28 -> 9373.107125 | V48: ='Income Statement'!V28 -> 11262.53078 | W48: ='Income Statement'!W28 -> 0 | X48: ='Income Statement'!X28 -> 0 | Y48: ='Income Statement'!Y28 -> 0 | Z48: ='Income Statement'!Z28 -> 0 | AA48: ='Income Statement'!AA28 -> 0 | AB48: ='Income Statement'!AB28 -> 0 | AC48: ='Income Statement'!AC28 -> 0 | AD48: ='Income Statement'!J28
A49: w | E49: Dividends declared | G49: =Currency -> US$'000
A50: w | D50: Retained profits | G50: =Currency -> US$'000 | J50: =SUM(J47:J49) -> 154.9250847 | K50: =SUM(K47:K49) -> 291.9005073 | L50: 1109.03324 | M50: 2364.077244 | N50: 3462.251066 | O50: 5737.718698 | P50: 8787.357441 | Q50: 12741.15773 | R50: 17766.33912 | S50: 24048.9533 | T50: 31779.67092 | U50: 41152.77804 | V50: 52415.30882 | W50: 0 | X50: 0 | Y50: 0 | Z50: 0 | AA50: 0 | AB50: 0 | AC50: 0 | AD50: =SUM(J47:J49)
A51: w | C51: Total equity | G51: =Currency -> US$'000 | J51: =SUM(J46,J50) -> 154.9250847 | K51: =SUM(K46,K50) -> 291.9005073 | L51: 1109.03324 | M51: 2364.077244 | N51: 3462.251066 | O51: 5737.718698 | P51: 8787.357441 | Q51: 12741.15773 | R51: 17766.33912 | S51: 24048.9533 | T51: 31779.67092 | U51: 41152.77804 | V51: 52415.30882 | W51: 0 | X51: 0 | Y51: 0 | Z51: 0 | AA51: 0 | AB51: 0 | AC51: 0 | AD51: =SUM(J46,J50)
C54: Checks | AD54: =IFERROR(_xlfn.FORMULATEXT(J54),"") -> 
A56: w | D56: PF error check | G56: =Boolean -> [1,0] | I56: =MAX(J56:AC56) -> 0 | J56: =IF(ISERROR(_xlfn.ANCHORARRAY(J42)-_xlfn.ANCHORARRAY(J51)),1,0) -> 0 | K56: =IF(ISERROR(_xlfn.ANCHORARRAY(K42)-_xlfn.ANCHORARRAY(K51)),1,0) -> 0 | L56: =IF(ISERROR(_xlfn.ANCHORARRAY(L42)-_xlfn.ANCHORARRAY(L51)),1,0) -> 0 | M56: =IF(ISERROR(_xlfn.ANCHORARRAY(M42)-_xlfn.ANCHORARRAY(M51)),1,0) -> 0 | N56: =IF(ISERROR(_xlfn.ANCHORARRAY(N42)-_xlfn.ANCHORARRAY(N51)),1,0) -> 0 | O56: =IF(ISERROR(_xlfn.ANCHORARRAY(O42)-_xlfn.ANCHORARRAY(O51)),1,0) -> 0 | P56: =IF(ISERROR(_xlfn.ANCHORARRAY(P42)-_xlfn.ANCHORARRAY(P51)),1,0) -> 0 | Q56: =IF(ISERROR(_xlfn.ANCHORARRAY(Q42)-_xlfn.ANCHORARRAY(Q51)),1,0) -> 0 | R56: =IF(ISERROR(_xlfn.ANCHORARRAY(R42)-_xlfn.ANCHORARRAY(R51)),1,0) -> 0 | S56: =IF(ISERROR(_xlfn.ANCHORARRAY(S42)-_xlfn.ANCHORARRAY(S51)),1,0) -> 0 | T56: =IF(ISERROR(_xlfn.ANCHORARRAY(T42)-_xlfn.ANCHORARRAY(T51)),1,0) -> 0 | U56: =IF(ISERROR(_xlfn.ANCHORARRAY(U42)-_xlfn.ANCHORARRAY(U51)),1,0) -> 0 | V56: =IF(ISERROR(_xlfn.ANCHORARRAY(V42)-_xlfn.ANCHORARRAY(V51)),1,0) -> 0 | W56: =IF(ISERROR(_xlfn.ANCHORARRAY(W42)-_xlfn.ANCHORARRAY(W51)),1,0) -> 0 | X56: =IF(ISERROR(_xlfn.ANCHORARRAY(X42)-_xlfn.ANCHORARRAY(X51)),1,0) -> 0 | Y56: =IF(ISERROR(_xlfn.ANCHORARRAY(Y42)-_xlfn.ANCHORARRAY(Y51)),1,0) -> 0 | Z56: =IF(ISERROR(_xlfn.ANCHORARRAY(Z42)-_xlfn.ANCHORARRAY(Z51)),1,0) -> 0 | AA56: =IF(ISERROR(_xlfn.ANCHORARRAY(AA42)-_xlfn.ANCHORARRAY(AA51)),1,0) -> 0 | AB56: =IF(ISERROR(_xlfn.ANCHORARRAY(AB42)-_xlfn.ANCHORARRAY(AB51)),1,0) -> 0 | AC56: =IF(ISERROR(_xlfn.ANCHORARRAY(AC42)-_xlfn.ANCHORARRAY(AC51)),1,0) -> 0 | AD56: =IF(ISERROR(J42#-J51#),1,0)
A57: w | D57: Balance check | G57: =Boolean -> [1,0] | I57: =MAX(J57:AC57) -> 0 | J57: =IF(_xlfn.ANCHORARRAY(J56)<>0,0,(ROUND(_xlfn.ANCHORARRAY(J42)-_xlfn.ANCHORARRAY(J51),Rounding_Accuracy)<>0)*1) -> 0 | K57: =IF(_xlfn.ANCHORARRAY(K56)<>0,0,(ROUND(_xlfn.ANCHORARRAY(K42)-_xlfn.ANCHORARRAY(K51),Rounding_Accuracy)<>0)*1) -> 0 | L57: =IF(_xlfn.ANCHORARRAY(L56)<>0,0,(ROUND(_xlfn.ANCHORARRAY(L42)-_xlfn.ANCHORARRAY(L51),Rounding_Accuracy)<>0)*1) -> 0 | M57: =IF(_xlfn.ANCHORARRAY(M56)<>0,0,(ROUND(_xlfn.ANCHORARRAY(M42)-_xlfn.ANCHORARRAY(M51),Rounding_Accuracy)<>0)*1) -> 0 | N57: =IF(_xlfn.ANCHORARRAY(N56)<>0,0,(ROUND(_xlfn.ANCHORARRAY(N42)-_xlfn.ANCHORARRAY(N51),Rounding_Accuracy)<>0)*1) -> 0 | O57: =IF(_xlfn.ANCHORARRAY(O56)<>0,0,(ROUND(_xlfn.ANCHORARRAY(O42)-_xlfn.ANCHORARRAY(O51),Rounding_Accuracy)<>0)*1) -> 0 | P57: =IF(_xlfn.ANCHORARRAY(P56)<>0,0,(ROUND(_xlfn.ANCHORARRAY(P42)-_xlfn.ANCHORARRAY(P51),Rounding_Accuracy)<>0)*1) -> 0 | Q57: =IF(_xlfn.ANCHORARRAY(Q56)<>0,0,(ROUND(_xlfn.ANCHORARRAY(Q42)-_xlfn.ANCHORARRAY(Q51),Rounding_Accuracy)<>0)*1) -> 0 | R57: =IF(_xlfn.ANCHORARRAY(R56)<>0,0,(ROUND(_xlfn.ANCHORARRAY(R42)-_xlfn.ANCHORARRAY(R51),Rounding_Accuracy)<>0)*1) -> 0 | S57: =IF(_xlfn.ANCHORARRAY(S56)<>0,0,(ROUND(_xlfn.ANCHORARRAY(S42)-_xlfn.ANCHORARRAY(S51),Rounding_Accuracy)<>0)*1) -> 0 | T57: =IF(_xlfn.ANCHORARRAY(T56)<>0,0,(ROUND(_xlfn.ANCHORARRAY(T42)-_xlfn.ANCHORARRAY(T51),Rounding_Accuracy)<>0)*1) -> 0 | U57: =IF(_xlfn.ANCHORARRAY(U56)<>0,0,(ROUND(_xlfn.ANCHORARRAY(U42)-_xlfn.ANCHORARRAY(U51),Rounding_Accuracy)<>0)*1) -> 0 | V57: =IF(_xlfn.ANCHORARRAY(V56)<>0,0,(ROUND(_xlfn.ANCHORARRAY(V42)-_xlfn.ANCHORARRAY(V51),Rounding_Accuracy)<>0)*1) -> 0 | W57: =IF(_xlfn.ANCHORARRAY(W56)<>0,0,(ROUND(_xlfn.ANCHORARRAY(W42)-_xlfn.ANCHORARRAY(W51),Rounding_Accuracy)<>0)*1) -> 0 | X57: =IF(_xlfn.ANCHORARRAY(X56)<>0,0,(ROUND(_xlfn.ANCHORARRAY(X42)-_xlfn.ANCHORARRAY(X51),Rounding_Accuracy)<>0)*1) -> 0 | Y57: =IF(_xlfn.ANCHORARRAY(Y56)<>0,0,(ROUND(_xlfn.ANCHORARRAY(Y42)-_xlfn.ANCHORARRAY(Y51),Rounding_Accuracy)<>0)*1) -> 0 | Z57: =IF(_xlfn.ANCHORARRAY(Z56)<>0,0,(ROUND(_xlfn.ANCHORARRAY(Z42)-_xlfn.ANCHORARRAY(Z51),Rounding_Accuracy)<>0)*1) -> 0 | AA57: =IF(_xlfn.ANCHORARRAY(AA56)<>0,0,(ROUND(_xlfn.ANCHORARRAY(AA42)-_xlfn.ANCHORARRAY(AA51),Rounding_Accuracy)<>0)*1) -> 0 | AB57: =IF(_xlfn.ANCHORARRAY(AB56)<>0,0,(ROUND(_xlfn.ANCHORARRAY(AB42)-_xlfn.ANCHORARRAY(AB51),Rounding_Accuracy)<>0)*1) -> 0 | AC57: =IF(_xlfn.ANCHORARRAY(AC56)<>0,0,(ROUND(_xlfn.ANCHORARRAY(AC42)-_xlfn.ANCHORARRAY(AC51),Rounding_Accuracy)<>0)*1) -> 0 | AD57: =IF(J56#<>0,0,(ROUND(J42#-J51#,Rounding_Accuracy)<>0)*1)
A58: w | D58: Insolvency check | G58: =Boolean -> [1,0] | I58: 0 | J58: =IF(_xlfn.ANCHORARRAY(J56)+_xlfn.ANCHORARRAY(J57)<>0,0,(_xlfn.ANCHORARRAY(J42)<0)*1) -> 0 | K58: =IF(_xlfn.ANCHORARRAY(K56)+_xlfn.ANCHORARRAY(K57)<>0,0,(_xlfn.ANCHORARRAY(K42)<0)*1) -> 0 | L58: =IF(_xlfn.ANCHORARRAY(L56)+_xlfn.ANCHORARRAY(L57)<>0,0,(_xlfn.ANCHORARRAY(L42)<0)*1) -> 0 | M58: =IF(_xlfn.ANCHORARRAY(M56)+_xlfn.ANCHORARRAY(M57)<>0,0,(_xlfn.ANCHORARRAY(M42)<0)*1) -> 0 | N58: =IF(_xlfn.ANCHORARRAY(N56)+_xlfn.ANCHORARRAY(N57)<>0,0,(_xlfn.ANCHORARRAY(N42)<0)*1) -> 0 | O58: =IF(_xlfn.ANCHORARRAY(O56)+_xlfn.ANCHORARRAY(O57)<>0,0,(_xlfn.ANCHORARRAY(O42)<0)*1) -> 0 | P58: =IF(_xlfn.ANCHORARRAY(P56)+_xlfn.ANCHORARRAY(P57)<>0,0,(_xlfn.ANCHORARRAY(P42)<0)*1) -> 0 | Q58: =IF(_xlfn.ANCHORARRAY(Q56)+_xlfn.ANCHORARRAY(Q57)<>0,0,(_xlfn.ANCHORARRAY(Q42)<0)*1) -> 0 | R58: =IF(_xlfn.ANCHORARRAY(R56)+_xlfn.ANCHORARRAY(R57)<>0,0,(_xlfn.ANCHORARRAY(R42)<0)*1) -> 0 | S58: =IF(_xlfn.ANCHORARRAY(S56)+_xlfn.ANCHORARRAY(S57)<>0,0,(_xlfn.ANCHORARRAY(S42)<0)*1) -> 0 | T58: =IF(_xlfn.ANCHORARRAY(T56)+_xlfn.ANCHORARRAY(T57)<>0,0,(_xlfn.ANCHORARRAY(T42)<0)*1) -> 0 | U58: =IF(_xlfn.ANCHORARRAY(U56)+_xlfn.ANCHORARRAY(U57)<>0,0,(_xlfn.ANCHORARRAY(U42)<0)*1) -> 0 | V58: =IF(_xlfn.ANCHORARRAY(V56)+_xlfn.ANCHORARRAY(V57)<>0,0,(_xlfn.ANCHORARRAY(V42)<0)*1) -> 0 | W58: =IF(_xlfn.ANCHORARRAY(W56)+_xlfn.ANCHORARRAY(W57)<>0,0,(_xlfn.ANCHORARRAY(W42)<0)*1) -> 0 | X58: =IF(_xlfn.ANCHORARRAY(X56)+_xlfn.ANCHORARRAY(X57)<>0,0,(_xlfn.ANCHORARRAY(X42)<0)*1) -> 0 | Y58: =IF(_xlfn.ANCHORARRAY(Y56)+_xlfn.ANCHORARRAY(Y57)<>0,0,(_xlfn.ANCHORARRAY(Y42)<0)*1) -> 0 | Z58: =IF(_xlfn.ANCHORARRAY(Z56)+_xlfn.ANCHORARRAY(Z57)<>0,0,(_xlfn.ANCHORARRAY(Z42)<0)*1) -> 0 | AA58: =IF(_xlfn.ANCHORARRAY(AA56)+_xlfn.ANCHORARRAY(AA57)<>0,0,(_xlfn.ANCHORARRAY(AA42)<0)*1) -> 0 | AB58: =IF(_xlfn.ANCHORARRAY(AB56)+_xlfn.ANCHORARRAY(AB57)<>0,0,(_xlfn.ANCHORARRAY(AB42)<0)*1) -> 0 | AC58: =IF(_xlfn.ANCHORARRAY(AC56)+_xlfn.ANCHORARRAY(AC57)<>0,0,(_xlfn.ANCHORARRAY(AC42)<0)*1) -> 0 | AD58: =IF(J56#+J57#<>0,0,(J42#<0)*1)

Sheet Cash Flow Statement
A1: =IF(ISERROR(RIGHT(CELL("filename",A1),LEN(CELL("filename",A1))-FIND("]",CELL("filename",A1)))), "", RIGHT(CELL("filename",A1),LEN(CELL("filename",A1))-FIND("]",CELL("filename",A1)))) -> Cash Flow Statement
A2: =Model_Name -> Model 10 - Capital Expenditure Completed.xlsm
A3: Navigator
B4: Error Checks: | G4: =Overall_Error_Check -> 0
J5: =_xlfn.ANCHORARRAY(Timing!J5) -> 2025-06-30 | K5: 2026-06-30 | L5: 2027-06-30 | M5: 2028-06-30 | N5: 2029-06-30 | O5: 2030-06-30 | P5: 2031-06-30 | Q5: 2032-06-30 | R5: 2033-06-30 | S5: 2034-06-30 | T5: 2035-06-30 | U5: 2036-06-30 | V5: 2037-06-30
C6: Start Date | J6: =_xlfn.ANCHORARRAY(Timing!J6) -> 2024-07-01 | K6: 2025-07-01 | L6: 2026-07-01 | M6: 2027-07-01 | N6: 2028-07-01 | O6: 2029-07-01 | P6: 2030-07-01 | Q6: 2031-07-01 | R6: 2032-07-01 | S6: 2033-07-01 | T6: 2034-07-01 | U6: 2035-07-01 | V6: 2036-07-01
C7: End Date | J7: =_xlfn.ANCHORARRAY(Timing!J7) -> 2025-06-30 | K7: 2026-06-30 | L7: 2027-06-30 | M7: 2028-06-30 | N7: 2029-06-30 | O7: 2030-06-30 | P7: 2031-06-30 | Q7: 2032-06-30 | R7: 2033-06-30 | S7: 2034-06-30 | T7: 2035-06-30 | U7: 2036-06-30 | V7: 2037-06-30
C8: Number of Days | J8: =_xlfn.ANCHORARRAY(Timing!J8) -> 365 | K8: 365 | L8: 365 | M8: 366 | N8: 365 | O8: 365 | P8: 365 | Q8: 366 | R8: 365 | S8: 365 | T8: 365 | U8: 366 | V8: 365
C9: Counter | J9: =_xlfn.ANCHORARRAY(Timing!J9) -> 1 | K9: 2 | L9: 3 | M9: 4 | N9: 5 | O9: 6 | P9: 7 | Q9: 8 | R9: 9 | S9: 10 | T9: 11 | U9: 12 | V9: 13
B11: =MAX($B$10:$B10)+1 -> 1 | C11: =A1 -> Cash Flow Statement
C13: Direct Cash Flow Statement
D15: Operating cash flow | P15: =IFERROR(_xlfn.FORMULATEXT(J15),"") -> 
E16: Cash receipts | G16: =Currency -> US$'000 | J16: =-_xlfn.ANCHORARRAY(Calculations!J37) -> 1253.424658 | K16: 2828.630137 | L16: 4535.950685 | M16: 6434.633209 | N16: 8578.271476 | O16: 10974.21244 | P16: 13623.3789 | Q16: 16558.59135 | R16: 19773.1072 | S16: 23338.57789 | T16: 27252.12275 | U16: 31565.76707 | V16: 36253.72307 | AD16: =IFERROR(_xlfn.FORMULATEXT(J16),"") -> =-Calculations!J37#
F17: Direct cash payments | G17: =Currency -> US$'000 | J17: =_xlfn.ANCHORARRAY(Calculations!J63)+_xlfn.ANCHORARRAY(Calculations!J90) -> -1803.863014 | K17: -4319.243151 | L17: -2455.891781 | M17: -4058.554481 | N17: -7295.527944 | O17: -8717.344612 | P17: -10616.12718 | Q17: -12710.33431 | R17: -14939.02139 | S17: -17341.18818 | T17: -19904.22008 | U17: -22651.78048 | V17: -25555.33875 | AD17: =Calculations!J63#+Calculations!J90#
F18: Indirect cash payments | G18: =Currency -> US$'000 | J18: =_xlfn.ANCHORARRAY(Calculations!J172) -> -60 | K18: -65 | L18: -67.6 | M18: -69.628 | N18: -71.02056 | O18: -71.7307656 | P18: -72.44807326 | Q18: -73.17255399 | R18: -73.90427953 | S18: -74.64332232 | T18: -75.38975555 | U18: -76.1436531 | V18: -76.90508963 | AD18: =Calculations!J172#
E19: Cash payments | G19: =Currency -> US$'000 | J19: =_xlfn.ANCHORARRAY(J17)+_xlfn.ANCHORARRAY(J18) -> -1863.863014 | K19: -4384.243151 | L19: -2523.491781 | M19: -4128.182481 | N19: -7366.548504 | O19: -8789.075378 | P19: -10688.57525 | Q19: -12783.50686 | R19: -15012.92567 | S19: -17415.8315 | T19: -19979.60984 | U19: -22727.92413 | V19: -25632.24384 | AD19: =J17#+J18#
E20: Interest paid | G20: =Currency -> US$'000
E21: Tax paid | G21: =Currency -> US$'000
A22: w | E22: Net operating cash flow | G22: =Currency -> US$'000 | J22: =SUM(J16,J19:J21) -> -610.4383562 | K22: =SUM(K16,K19:K21) -> -1555.613014 | L22: 2012.458904 | M22: 2306.450728 | N22: 1211.722972 | O22: 2185.137067 | P22: 2934.803648 | Q22: 3775.084484 | R22: 4760.181531 | S22: 5922.746387 | T22: 7272.512912 | U22: 8837.842932 | V22: 10621.47923 | W22: 0 | X22: 0 | Y22: 0 | Z22: 0 | AA22: 0 | AB22: 0 | AC22: 0 | AD22: =SUM(J16,J19:J21)
D24: Investing cash flows
E25: Purchases of non-current assets | G25: =Currency -> US$'000 | J25: =-_xlfn.ANCHORARRAY(Calculations!J200) -> -150 | K25: -180 | L25: -120 | M25: -90 | N25: -100 | O25: -150 | P25: -180 | Q25: -120 | R25: -90 | S25: -100 | T25: -150 | U25: -180 | V25: -120 | AD25: =-Calculations!J200#
E26: Net investing cash flows | G26: =Currency -> US$'000 | J26: =_xlfn.ANCHORARRAY(J25) -> -150 | K26: -180 | L26: -120 | M26: -90 | N26: -100 | O26: -150 | P26: -180 | Q26: -120 | R26: -90 | S26: -100 | T26: -150 | U26: -180 | V26: -120 | AD26: =J25#
D28: Financing cash flows
E29: Debt drawdowns | G29: =Currency -> US$'000
E30: Debt repayments | G30: =Currency -> US$'000
E31: Ordinary equity issuances | G31: =Currency -> US$'000
E32: Ordinary equity buybacks | G32: =Currency -> US$'000
E33: Dividends paid | G33: =Currency -> US$'000
A34: w | E34: Net financing cash flows | G34: =Currency -> US$'000 | J34: =SUM(J29:J33) -> 0 | K34: =SUM(K29:K33) -> 0 | L34: 0 | M34: 0 | N34: 0 | O34: 0 | P34: 0 | Q34: 0 | R34: 0 | S34: 0 | T34: 0 | U34: 0 | V34: 0 | W34: 0 | X34: 0 | Y34: 0 | Z34: 0 | AA34: 0 | AB34: 0 | AC34: 0 | AD34: =SUM(J29:J33)
A36: w | D36: Net increase / (decrease) in cash held | G36: =Currency -> US$'000 | J36: =SUM(J22,J26,J34) -> -760.4383562 | K36: =SUM(K22,K26,K34) -> -1735.613014 | L36: 1892.458904 | M36: 2216.450728 | N36: 1111.722972 | O36: 2035.137067 | P36: 2754.803648 | Q36: 3655.084484 | R36: 4670.181531 | S36: 5822.746387 | T36: 7122.512912 | U36: 8657.842932 | V36: 10501.47923 | W36: 0 | X36: 0 | Y36: 0 | Z36: 0 | AA36: 0 | AB36: 0 | AC36: 0 | AD36: =SUM(J22,J26,J34)

Sheet Timing
A1: =IF(ISERROR(RIGHT(CELL("filename",A1),LEN(CELL("filename",A1))-FIND("]",CELL("filename",A1)))), "", RIGHT(CELL("filename",A1),LEN(CELL("filename",A1))-FIND("]",CELL("filename",A1)))) -> Timing
A2: =Model_Name -> Model 10 - Capital Expenditure Completed.xlsm
A3: Navigator
B4: Error Checks: | F4: =Overall_Error_Check -> 0
J5: =_xlfn.ANCHORARRAY(J$7) -> 2025-06-30 | K5: 2026-06-30 | L5: 2027-06-30 | M5: 2028-06-30 | N5: 2029-06-30 | O5: 2030-06-30 | P5: 2031-06-30 | Q5: 2032-06-30 | R5: 2033-06-30 | S5: 2034-06-30 | T5: 2035-06-30 | U5: 2036-06-30 | V5: 2037-06-30
C6: Start Date | J6: =IF(_xlfn.ANCHORARRAY(J$9)=1,Model_Start_Date,OFFSET(_xlfn.ANCHORARRAY(J7),,-1)+1) -> 2024-07-01 | K6: 2025-07-01 | L6: 2026-07-01 | M6: 2027-07-01 | N6: 2028-07-01 | O6: 2029-07-01 | P6: 2030-07-01 | Q6: 2031-07-01 | R6: 2032-07-01 | S6: 2033-07-01 | T6: 2034-07-01 | U6: 2035-07-01 | V6: 2036-07-01
C7: End Date | J7: =EOMONTH(Model_Start_Date, MOD(Periodicity+Reporting_Month_Factor -MONTH(Model_Start_Date),Periodicity)+Periodicity*(_xlfn.ANCHORARRAY(J$9)-1)) -> 2025-06-30 | K7: 2026-06-30 | L7: 2027-06-30 | M7: 2028-06-30 | N7: 2029-06-30 | O7: 2030-06-30 | P7: 2031-06-30 | Q7: 2032-06-30 | R7: 2033-06-30 | S7: 2034-06-30 | T7: 2035-06-30 | U7: 2036-06-30 | V7: 2037-06-30
C8: Number of Days | J8: =_xlfn.ANCHORARRAY(J7)-_xlfn.ANCHORARRAY(J6)+1 -> 365 | K8: 365 | L8: 365 | M8: 366 | N8: 365 | O8: 365 | P8: 365 | Q8: 366 | R8: 365 | S8: 365 | T8: 365 | U8: 366 | V8: 365
C9: Counter | J9: =_xlfn.SEQUENCE(1,Number_of_Periods) -> 1 | K9: 2 | L9: 3 | M9: 4 | N9: 5 | O9: 6 | P9: 7 | Q9: 8 | R9: 9 | S9: 10 | T9: 11 | U9: 12 | V9: 13
B11: =MAX($B$10:$B10)+1 -> 1 | C11: Timing Assumptions
C13: Data (do not change once modelling has commenced)
D15: Number of Periods | H15: 13 | K15: Number_of_Periods
D17: Model Start Date | H17: 2024-07-01 | K17: Model_Start_Date
D19: Number of Months in a Full Period | H19: 12 | K19: Periodicity
D21: Example Reporting Month | H21: 6 | I21: ="e.g. "&TEXT(DATE(YEAR(Model_Start_Date)+IF(Example_Reporting_Month<MONTH(Model_Start_Date),1,0),Example_Reporting_Month+1,1)-1,"dd-Mmm-yy") -> e.g. 30-Jun-25 | K21: Example_Reporting_Month
D23: Reporting Month Factor | H23: =MOD(Example_Reporting_Month-1,Periodicity)+1 -> 6 | K23: Reporting_Month_Factor

Sheet Lookup
A1: =IF(ISERROR(RIGHT(CELL("filename",A1),LEN(CELL("filename",A1))-FIND("]",CELL("filename",A1)))), "", RIGHT(CELL("filename",A1),LEN(CELL("filename",A1))-FIND("]",CELL("filename",A1)))) -> Lookup
A2: =Model_Name -> Model 10 - Capital Expenditure Completed.xlsm
A3: Navigator
B4: Error Checks: | F4: =Overall_Error_Check -> 0
B6: =MAX($B$5:$B5)+1 -> 1 | C6: =A1 -> Lookup
C8: Year Lookups
D10: LU_Future_Years
D11: =IF(_xlfn.SEQUENCE(Number_of_Periods)=1, "Actuals Throughout",TRANSPOSE(_xlfn.ANCHORARRAY(Timing!J7))) -> Actuals Throughout | F11: LU_Future_Years | G11: =_xlfn.FORMULATEXT(D11) -> =IF(SEQUENCE(Number_of_Periods)=1, "Actuals Throughout",TRANSPOSE(Timing!J7#))
D12: 2026-06-30
D13: 2027-06-30
D14: 2028-06-30
D15: 2029-06-30
D16: 2030-06-30
D17: 2031-06-30
D18: 2032-06-30
D19: 2033-06-30
D20: 2034-06-30
D21: 2035-06-30
D22: 2036-06-30
D23: 2037-06-30

Sheet Template Sheet
A1: =IF(ISERROR(RIGHT(CELL("filename",A1),LEN(CELL("filename",A1))-FIND("]",CELL("filename",A1)))), "", RIGHT(CELL("filename",A1),LEN(CELL("filename",A1))-FIND("]",CELL("filename",A1)))) -> Template Sheet
A2: =Model_Name -> Model 10 - Capital Expenditure Completed.xlsm
A3: Navigator
E4: Error Checks: | I4: =Overall_Error_Check -> 0
B6: =MAX($B$5:$B5)+1 -> 1 | C6: First Section
C8: Heading
D10: Sub Heading

Sheet Error Checks
A1: =IF(ISERROR(RIGHT(CELL("filename",A1),LEN(CELL("filename",A1))-FIND("]",CELL("filename",A1)))), "", RIGHT(CELL("filename",A1),LEN(CELL("filename",A1))-FIND("]",CELL("filename",A1)))) -> Error Checks
A2: =Model_Name -> Model 10 - Capital Expenditure Completed.xlsm
A3: Navigator
B4: Error Checks: | F4: =Overall_Error_Check -> 0
B6: =MAX($B$5:$B5)+1 -> 1 | C6: Error Checks
C8: Summary of Errors
D10: Assumptions
E12: Balance Sheet has no errors | I12: =HL_BS_Errors -> 0
E13: Balance Sheet balances | I13: =HL_BS_Balance -> 0
E14: Insolvency check for Balance Sheet | I14: =HL_BS_Insolvency -> 0
E15: Opening Balance Sheet has no errors | I15: =HL_Op_BS_Errors -> 0
E16: Opening Balance Sheet balances | I16: =HL_Op_BS_Balance -> 0
E17: Insolvency check for Opening Balance Sheet | I17: =HL_Op_BS_Insolvency -> 0
E25: =C8 -> Summary of Errors | I25: =MAX(I12:I24) -> 0
